Workbook

Sheet Steuerung
B2: Darlehensrechner
B4: Tilgung und Zins bei Annuitäten- und Abzahlungsdarlehen.
B5: Nehmen Sie in den gelben Feldern die entsprechenden Eintragungen vor, und kontrollieren Sie Zinsen und Tilgung in den Tabellen Annuitätendarlehen und Abzahlungsdarlehen.
B9: Datum der Kreditaufnahme | F9: Darlehenssumme | G9: 355329.95 | H9: €
B10: Tag | C10: Monat | D10: Jahr | F10: Zinssatz | G10: 0.025 | H10: per anno
B11: 12 | C11: 7 | D11: 2006 | F11: Tilgunssatz | G11: 0.2 | H11: je Abrechnungsperiode
B13: Geben Sie Tag, Monat und Jahr jeweils in eine Zelle ein. | H13: 1
F14: Abrechnungsperiode | H14: Die Anzahl der Abrechnungsperioden ist auf 100 begrenzt.
F15: (Zinstermine)
A19: Arbeitsaufträge
A21: Vergleichen Sie Tilgung und Zinszahlung bei den folgenden Darlehen.
A22: Nr.: | B22: Datum | D22: Zinssatz | F22: Tilgung | G22: Darlehenssumme | H22: Abrechnungsperiode
A23: 1 | B23: =TODAY() -> 2020-08-29 | D23: 0.041 | F23: 2% jährlich | G23: 120000 | H23: jährlich
A24: 2 | B24: =TODAY() -> 2020-08-29 | D24: 0.05 | F24: 1,5% monatlich | G24: 80000 | H24: monatlich
A25: 3 | B25: 2020-08-29 | D25: 0.039 | F25: 2,5% vierteljährlich | G25: 160000 | H25: vierteljährlich
A26: 4 | B26: 2020-08-29 | D26: 1,3% vierteljährlich | F26: 4% vierteljährlich | G26: 240000 | H26: vierteljährlich
A27: 5 | B27: 2020-08-29 | D27: 0.042 | F27: 6% jährlich | G27: 350000 | H27: jährlich
A28: 6 | B28: 2020-08-29 | D28: 0.042 | F28: 6% jährlich | G28: 90000 | H28: vierteljährlich
A29: 7 | B29: 2020-08-29 | D29: 0,25% monatlich | F29: 18% jährlich | G29: 150000 | H29: monatlich
A30: 8 | B30: Vergleichen Sie Tilgung und Zinszahlung bei weiteren Annuitäten und Abzahlungsdarlehen.

Sheet Annuitätendarlehen
B2: Summe der gezahlten Zinsen | F2: =SUM(F5:F105) -> 26200.00402 | G2: Annuitätendarlehen
B3: Abrechnungs- datum | C3: Zinsstage | E3: Kapitaldienst | F3: Zinsen | G3: Tilgung | H3: Restschuld
B5: =IF(Steuerung!$H$13=1,DATE(Steuerung!$D$11+0,Steuerung!$C$11,Steuerung!$B$11),IF(Steuerung!$H$13=2,DATE(Steuerung!$D$11,Steuerung!$C$11+0,Steuerung!$B$11),DATE(Steuerung!$D$11,Steuerung!$C$11+0,Steuerung!$B$11))) -> 2006-07-12 | C5: =IF(Steuerung!$H$13=1,360,IF(Steuerung!$H$13=2,90,30)) -> 360 | D5: 0 | E5: =F5+G5 -> 0 | F5: 0 | G5: 0 | H5: =Steuerung!G9 -> 355329.95
B6: =IF(Steuerung!$H$13=1,DATE(Steuerung!$D$11+1,Steuerung!$C$11,Steuerung!$B$11),IF(Steuerung!$H$13=2,DATE(Steuerung!$D$11,Steuerung!$C$11+3,Steuerung!$B$11),DATE(Steuerung!$D$11,Steuerung!$C$11+1,Steuerung!$B$11))) -> 2007-07-12 | C6: =IF(Steuerung!$H$13=1,360,IF(Steuerung!$H$13=2,90,30)) -> 360 | D6: =Steuerung!$G$9*(Steuerung!$G$10+Steuerung!$G$11) -> 79949.23875 | E6: =F6+G6 -> 79949.23875 | F6: =IF(H5>0,(H5*Steuerung!$G$10*C6)/360,0) -> 8883.24875 | G6: =IF((H5+F6)>D6,D6-F6,H5) -> 71065.99 | H6: =IF((H5-G6)>0,(H5-G6),0) -> 284263.96
B7: =IF(Steuerung!$H$13=1,DATE(Steuerung!$D$11+2,Steuerung!$C$11,Steuerung!$B$11),IF(Steuerung!$H$13=2,DATE(Steuerung!$D$11,Steuerung!$C$11+6,Steuerung!$B$11),DATE(Steuerung!$D$11,Steuerung!$C$11+2,Steuerung!$B$11))) -> 2008-07-12 | C7: =IF(Steuerung!$H$13=1,360,IF(Steuerung!$H$13=2,90,30)) -> 360 | D7: =Steuerung!$G$9*(Steuerung!$G$10+Steuerung!$G$11) -> 79949.23875 | E7: 79949.23875 | F7: =IF(H6>0,(H6*Steuerung!$G$10*C7)/360,0) -> 7106.599 | G7: 72842.63975 | H7: 211421.3203
B8: =IF(Steuerung!$H$13=1,DATE(Steuerung!$D$11+3,Steuerung!$C$11,Steuerung!$B$11),IF(Steuerung!$H$13=2,DATE(Steuerung!$D$11,Steuerung!$C$11+9,Steuerung!$B$11),DATE(Steuerung!$D$11,Steuerung!$C$11+3,Steuerung!$B$11))) -> 2009-07-12 | C8: =IF(Steuerung!$H$13=1,360,IF(Steuerung!$H$13=2,90,30)) -> 360 | D8: =Steuerung!$G$9*(Steuerung!$G$10+Steuerung!$G$11) -> 79949.23875 | E8: 79949.23875 | F8: =IF(H7>0,(H7*Steuerung!$G$10*C8)/360,0) -> 5285.533006 | G8: 74663.70574 | H8: 136757.6145
B9: =IF(Steuerung!$H$13=1,DATE(Steuerung!$D$11+4,Steuerung!$C$11,Steuerung!$B$11),IF(Steuerung!$H$13=2,DATE(Steuerung!$D$11,Steuerung!$C$11+12,Steuerung!$B$11),DATE(Steuerung!$D$11,Steuerung!$C$11+4,Steuerung!$B$11))) -> 2010-07-12 | C9: =IF(Steuerung!$H$13=1,360,IF(Steuerung!$H$13=2,90,30)) -> 360 | D9: =Steuerung!$G$9*(Steuerung!$G$10+Steuerung!$G$11) -> 79949.23875 | E9: 79949.23875 | F9: =IF(H8>0,(H8*Steuerung!$G$10*C9)/360,0) -> 3418.940363 | G9: 76530.29839 | H9: 60227.31612
B10: =IF(Steuerung!$H$13=1,DATE(Steuerung!$D$11+5,Steuerung!$C$11,Steuerung!$B$11),IF(Steuerung!$H$13=2,DATE(Steuerung!$D$11,Steuerung!$C$11+15,Steuerung!$B$11),DATE(Steuerung!$D$11,Steuerung!$C$11+5,Steuerung!$B$11))) -> 2011-07-12 | C10: =IF(Steuerung!$H$13=1,360,IF(Steuerung!$H$13=2,90,30)) -> 360 | D10: =Steuerung!$G$9*(Steuerung!$G$10+Steuerung!$G$11) -> 79949.23875 | E10: 61732.99902 | F10: =IF(H9>0,(H9*Steuerung!$G$10*C10)/360,0) -> 1505.682903 | G10: 60227.31612 | H10: 0
B11: =IF(Steuerung!$H$13=1,DATE(Steuerung!$D$11+6,Steuerung!$C$11,Steuerung!$B$11),IF(Steuerung!$H$13=2,DATE(Steuerung!$D$11,Steuerung!$C$11+18,Steuerung!$B$11),DATE(Steuerung!$D$11,Steuerung!$C$11+6,Steuerung!$B$11))) -> 2012-07-12 | C11: =IF(Steuerung!$H$13=1,360,IF(Steuerung!$H$13=2,90,30)) -> 360 | D11: =Steuerung!$G$9*(Steuerung!$G$10+Steuerung!$G$11) -> 79949.23875 | E11: 0 | F11: =IF(H10>0,(H10*Steuerung!$G$10*C11)/360,0) -> 0 | G11: 0 | H11: 0
B12: =IF(Steuerung!$H$13=1,DATE(Steuerung!$D$11+7,Steuerung!$C$11,Steuerung!$B$11),IF(Steuerung!$H$13=2,DATE(Steuerung!$D$11,Steuerung!$C$11+21,Steuerung!$B$11),DATE(Steuerung!$D$11,Steuerung!$C$11+7,Steuerung!$B$11))) -> 2013-07-12 | C12: =IF(Steuerung!$H$13=1,360,IF(Steuerung!$H$13=2,90,30)) -> 360 | D12: =Steuerung!$G$9*(Steuerung!$G$10+Steuerung!$G$11) -> 79949.23875 | E12: 0 | F12: =IF(H11>0,(H11*Steuerung!$G$10*C12)/360,0) -> 0 | G12: 0 | H12: 0
B13: =IF(Steuerung!$H$13=1,DATE(Steuerung!$D$11+8,Steuerung!$C$11,Steuerung!$B$11),IF(Steuerung!$H$13=2,DATE(Steuerung!$D$11,Steuerung!$C$11+24,Steuerung!$B$11),DATE(Steuerung!$D$11,Steuerung!$C$11+8,Steuerung!$B$11))) -> 2014-07-12 | C13: =IF(Steuerung!$H$13=1,360,IF(Steuerung!$H$13=2,90,30)) -> 360 | D13: =Steuerung!$G$9*(Steuerung!$G$10+Steuerung!$G$11) -> 79949.23875 | E13: 0 | F13: =IF(H12>0,(H12*Steuerung!$G$10*C13)/360,0) -> 0 | G13: 0 | H13: 0
B14: =IF(Steuerung!$H$13=1,DATE(Steuerung!$D$11+9,Steuerung!$C$11,Steuerung!$B$11),IF(Steuerung!$H$13=2,DATE(Steuerung!$D$11,Steuerung!$C$11+27,Steuerung!$B$11),DATE(Steuerung!$D$11,Steuerung!$C$11+9,Steuerung!$B$11))) -> 2015-07-12 | C14: =IF(Steuerung!$H$13=1,360,IF(Steuerung!$H$13=2,90,30)) -> 360 | D14: =Steuerung!$G$9*(Steuerung!$G$10+Steuerung!$G$11) -> 79949.23875 | E14: 0 | F14: =IF(H13>0,(H13*Steuerung!$G$10*C14)/360,0) -> 0 | G14: 0 | H14: 0
B15: =IF(Steuerung!$H$13=1,DATE(Steuerung!$D$11+10,Steuerung!$C$11,Steuerung!$B$11),IF(Steuerung!$H$13=2,DATE(Steuerung!$D$11,Steuerung!$C$11+30,Steuerung!$B$11),DATE(Steuerung!$D$11,Steuerung!$C$11+10,Steuerung!$B$11))) -> 2016-07-12 | C15: =IF(Steuerung!$H$13=1,360,IF(Steuerung!$H$13=2,90,30)) -> 360 | D15: =Steuerung!$G$9*(Steuerung!$G$10+Steuerung!$G$11) -> 79949.23875 | E15: 0 | F15: =IF(H14>0,(H14*Steuerung!$G$10*C15)/360,0) -> 0 | G15: 0 | H15: 0
B16: =IF(Steuerung!$H$13=1,DATE(Steuerung!$D$11+11,Steuerung!$C$11,Steuerung!$B$11),IF(Steuerung!$H$13=2,DATE(Steuerung!$D$11,Steuerung!$C$11+33,Steuerung!$B$11),DATE(Steuerung!$D$11,Steuerung!$C$11+11,Steuerung!$B$11))) -> 2017-07-12 | C16: =IF(Steuerung!$H$13=1,360,IF(Steuerung!$H$13=2,90,30)) -> 360 | D16: =Steuerung!$G$9*(Steuerung!$G$10+Steuerung!$G$11) -> 79949.23875 | E16: 0 | F16: =IF(H15>0,(H15*Steuerung!$G$10*C16)/360,0) -> 0 | G16: 0 | H16: 0
B17: =IF(Steuerung!$H$13=1,DATE(Steuerung!$D$11+12,Steuerung!$C$11,Steuerung!$B$11),IF(Steuerung!$H$13=2,DATE(Steuerung!$D$11,Steuerung!$C$11+36,Steuerung!$B$11),DATE(Steuerung!$D$11,Steuerung!$C$11+12,Steuerung!$B$11))) -> 2018-07-12 | C17: =IF(Steuerung!$H$13=1,360,IF(Steuerung!$H$13=2,90,30)) -> 360 | D17: =Steuerung!$G$9*(Steuerung!$G$10+Steuerung!$G$11) -> 79949.23875 | E17: 0 | F17: =IF(H16>0,(H16*Steuerung!$G$10*C17)/360,0) -> 0 | G17: 0 | H17: 0
B18: =IF(Steuerung!$H$13=1,DATE(Steuerung!$D$11+13,Steuerung!$C$11,Steuerung!$B$11),IF(Steuerung!$H$13=2,DATE(Steuerung!$D$11,Steuerung!$C$11+39,Steuerung!$B$11),DATE(Steuerung!$D$11,Steuerung!$C$11+13,Steuerung!$B$11))) -> 2019-07-12 | C18: =IF(Steuerung!$H$13=1,360,IF(Steuerung!$H$13=2,90,30)) -> 360 | D18: =Steuerung!$G$9*(Steuerung!$G$10+Steuerung!$G$11) -> 79949.23875 | E18: 0 | F18: =IF(H17>0,(H17*Steuerung!$G$10*C18)/360,0) -> 0 | G18: 0 | H18: 0
B19: =IF(Steuerung!$H$13=1,DATE(Steuerung!$D$11+14,Steuerung!$C$11,Steuerung!$B$11),IF(Steuerung!$H$13=2,DATE(Steuerung!$D$11,Steuerung!$C$11+42,Steuerung!$B$11),DATE(Steuerung!$D$11,Steuerung!$C$11+14,Steuerung!$B$11))) -> 2020-07-12 | C19: =IF(Steuerung!$H$13=1,360,IF(Steuerung!$H$13=2,90,30)) -> 360 | D19: =Steuerung!$G$9*(Steuerung!$G$10+Steuerung!$G$11) -> 79949.23875 | E19: 0 | F19: =IF(H18>0,(H18*Steuerung!$G$10*C19)/360,0) -> 0 | G19: 0 | H19: 0
B20: =IF(Steuerung!$H$13=1,DATE(Steuerung!$D$11+15,Steuerung!$C$11,Steuerung!$B$11),IF(Steuerung!$H$13=2,DATE(Steuerung!$D$11,Steuerung!$C$11+45,Steuerung!$B$11),DATE(Steuerung!$D$11,Steuerung!$C$11+15,Steuerung!$B$11))) -> 2021-07-12 | C20: =IF(Steuerung!$H$13=1,360,IF(Steuerung!$H$13=2,90,30)) -> 360 | D20: =Steuerung!$G$9*(Steuerung!$G$10+Steuerung!$G$11) -> 79949.23875 | E20: 0 | F20: =IF(H19>0,(H19*Steuerung!$G$10*C20)/360,0) -> 0 | G20: 0 | H20: 0
B21: =IF(Steuerung!$H$13=1,DATE(Steuerung!$D$11+16,Steuerung!$C$11,Steuerung!$B$11),IF(Steuerung!$H$13=2,DATE(Steuerung!$D$11,Steuerung!$C$11+48,Steuerung!$B$11),DATE(Steuerung!$D$11,Steuerung!$C$11+16,Steuerung!$B$11))) -> 2022-07-12 | C21: =IF(Steuerung!$H$13=1,360,IF(Steuerung!$H$13=2,90,30)) -> 360 | D21: =Steuerung!$G$9*(Steuerung!$G$10+Steuerung!$G$11) -> 79949.23875 | E21: 0 | F21: =IF(H20>0,(H20*Steuerung!$G$10*C21)/360,0) -> 0 | G21: 0 | H21: 0
B22: =IF(Steuerung!$H$13=1,DATE(Steuerung!$D$11+17,Steuerung!$C$11,Steuerung!$B$11),IF(Steuerung!$H$13=2,DATE(Steuerung!$D$11,Steuerung!$C$11+49,Steuerung!$B$11),DATE(Steuerung!$D$11,Steuerung!$C$11+17,Steuerung!$B$11))) -> 2023-07-12 | C22: =IF(Steuerung!$H$13=1,360,IF(Steuerung!$H$13=2,90,30)) -> 360 | D22: =Steuerung!$G$9*(Steuerung!$G$10+Steuerung!$G$11) -> 79949.23875 | E22: 0 | F22: =IF(H21>0,(H21*Steuerung!$G$10*C22)/360,0) -> 0 | G22: 0 | H22: 0
B23: =IF(Steuerung!$H$13=1,DATE(Steuerung!$D$11+18,Steuerung!$C$11,Steuerung!$B$11),IF(Steuerung!$H$13=2,DATE(Steuerung!$D$11,Steuerung!$C$11+52,Steuerung!$B$11),DATE(Steuerung!$D$11,Steuerung!$C$11+18,Steuerung!$B$11))) -> 2024-07-12 | C23: =IF(Steuerung!$H$13=1,360,IF(Steuerung!$H$13=2,90,30)) -> 360 | D23: =Steuerung!$G$9*(Steuerung!$G$10+Steuerung!$G$11) -> 79949.23875 | E23: 0 | F23: =IF(H22>0,(H22*Steuerung!$G$10*C23)/360,0) -> 0 | G23: 0 | H23: 0
B24: =IF(Steuerung!$H$13=1,DATE(Steuerung!$D$11+19,Steuerung!$C$11,Steuerung!$B$11),IF(Steuerung!$H$13=2,DATE(Steuerung!$D$11,Steuerung!$C$11+55,Steuerung!$B$11),DATE(Steuerung!$D$11,Steuerung!$C$11+19,Steuerung!$B$11))) -> 2025-07-12 | C24: =IF(Steuerung!$H$13=1,360,IF(Steuerung!$H$13=2,90,30)) -> 360 | D24: =Steuerung!$G$9*(Steuerung!$G$10+Steuerung!$G$11) -> 79949.23875 | E24: 0 | F24: =IF(H23>0,(H23*Steuerung!$G$10*C24)/360,0) -> 0 | G24: =IF((H23+F24)>D24,D24-F24,H23) -> 0 | H24: =IF((H23-G24)>0,(H23-G24),0) -> 0
B25: =IF(Steuerung!$H$13=1,DATE(Steuerung!$D$11+20,Steuerung!$C$11,Steuerung!$B$11),IF(Steuerung!$H$13=2,DATE(Steuerung!$D$11,Steuerung!$C$11+58,Steuerung!$B$11),DATE(Steuerung!$D$11,Steuerung!$C$11+20,Steuerung!$B$11))) -> 2026-07-12 | C25: =IF(Steuerung!$H$13=1,360,IF(Steuerung!$H$13=2,90,30)) -> 360 | D25: =Steuerung!$G$9*(Steuerung!$G$10+Steuerung!$G$11) -> 79949.23875 | E25: 0 | F25: =IF(H24>0,(H24*Steuerung!$G$10*C25)/360,0) -> 0 | G25: =IF((H24+F25)>D25,D25-F25,H24) -> 0 | H25: =IF((H24-G25)>0,(H24-G25),0) -> 0
B26: =IF(Steuerung!$H$13=1,DATE(Steuerung!$D$11+21,Steuerung!$C$11,Steuerung!$B$11),IF(Steuerung!$H$13=2,DATE(Steuerung!$D$11,Steuerung!$C$11+61,Steuerung!$B$11),DATE(Steuerung!$D$11,Steuerung!$C$11+21,Steuerung!$B$11))) -> 2027-07-12 | C26: =IF(Steuerung!$H$13=1,360,IF(Steuerung!$H$13=2,90,30)) -> 360 | D26: =Steuerung!$G$9*(Steuerung!$G$10+Steuerung!$G$11) -> 79949.23875 | E26: 0 | F26: =IF(H25>0,(H25*Steuerung!$G$10*C26)/360,0) -> 0 | G26: 0 | H26: 0
B27: =IF(Steuerung!$H$13=1,DATE(Steuerung!$D$11+22,Steuerung!$C$11,Steuerung!$B$11),IF(Steuerung!$H$13=2,DATE(Steuerung!$D$11,Steuerung!$C$11+64,Steuerung!$B$11),DATE(Steuerung!$D$11,Steuerung!$C$11+22,Steuerung!$B$11))) -> 2028-07-12 | C27: =IF(Steuerung!$H$13=1,360,IF(Steuerung!$H$13=2,90,30)) -> 360 | D27: =Steuerung!$G$9*(Steuerung!$G$10+Steuerung!$G$11) -> 79949.23875 | E27: 0 | F27: =IF(H26>0,(H26*Steuerung!$G$10*C27)/360,0) -> 0 | G27: 0 | H27: 0
B28: =IF(Steuerung!$H$13=1,DATE(Steuerung!$D$11+23,Steuerung!$C$11,Steuerung!$B$11),IF(Steuerung!$H$13=2,DATE(Steuerung!$D$11,Steuerung!$C$11+67,Steuerung!$B$11),DATE(Steuerung!$D$11,Steuerung!$C$11+23,Steuerung!$B$11))) -> 2029-07-12 | C28: =IF(Steuerung!$H$13=1,360,IF(Steuerung!$H$13=2,90,30)) -> 360 | D28: =Steuerung!$G$9*(Steuerung!$G$10+Steuerung!$G$11) -> 79949.23875 | E28: 0 | F28: =IF(H27>0,(H27*Steuerung!$G$10*C28)/360,0) -> 0 | G28: 0 | H28: 0
B29: =IF(Steuerung!$H$13=1,DATE(Steuerung!$D$11+24,Steuerung!$C$11,Steuerung!$B$11),IF(Steuerung!$H$13=2,DATE(Steuerung!$D$11,Steuerung!$C$11+70,Steuerung!$B$11),DATE(Steuerung!$D$11,Steuerung!$C$11+24,Steuerung!$B$11))) -> 2030-07-12 | C29: =IF(Steuerung!$H$13=1,360,IF(Steuerung!$H$13=2,90,30)) -> 360 | D29: =Steuerung!$G$9*(Steuerung!$G$10+Steuerung!$G$11) -> 79949.23875 | E29: 0 | F29: =IF(H28>0,(H28*Steuerung!$G$10*C29)/360,0) -> 0 | G29: 0 | H29: 0
B30: =IF(Steuerung!$H$13=1,DATE(Steuerung!$D$11+25,Steuerung!$C$11,Steuerung!$B$11),IF(Steuerung!$H$13=2,DATE(Steuerung!$D$11,Steuerung!$C$11+73,Steuerung!$B$11),DATE(Steuerung!$D$11,Steuerung!$C$11+25,Steuerung!$B$11))) -> 2031-07-12 | C30: =IF(Steuerung!$H$13=1,360,IF(Steuerung!$H$13=2,90,30)) -> 360 | D30: =Steuerung!$G$9*(Steuerung!$G$10+Steuerung!$G$11) -> 79949.23875 | E30: 0 | F30: =IF(H29>0,(H29*Steuerung!$G$10*C30)/360,0) -> 0 | G30: 0 | H30: 0
B31: =IF(Steuerung!$H$13=1,DATE(Steuerung!$D$11+26,Steuerung!$C$11,Steuerung!$B$11),IF(Steuerung!$H$13=2,DATE(Steuerung!$D$11,Steuerung!$C$11+76,Steuerung!$B$11),DATE(Steuerung!$D$11,Steuerung!$C$11+26,Steuerung!$B$11))) -> 2032-07-12 | C31: =IF(Steuerung!$H$13=1,360,IF(Steuerung!$H$13=2,90,30)) -> 360 | D31: =Steuerung!$G$9*(Steuerung!$G$10+Steuerung!$G$11) -> 79949.23875 | E31: 0 | F31: =IF(H30>0,(H30*Steuerung!$G$10*C31)/360,0) -> 0 | G31: 0 | H31: 0
B32: =IF(Steuerung!$H$13=1,DATE(Steuerung!$D$11+27,Steuerung!$C$11,Steuerung!$B$11),IF(Steuerung!$H$13=2,DATE(Steuerung!$D$11,Steuerung!$C$11+79,Steuerung!$B$11),DATE(Steuerung!$D$11,Steuerung!$C$11+27,Steuerung!$B$11))) -> 2033-07-12 | C32: =IF(Steuerung!$H$13=1,360,IF(Steuerung!$H$13=2,90,30)) -> 360 | D32: =Steuerung!$G$9*(Steuerung!$G$10+Steuerung!$G$11) -> 79949.23875 | E32: 0 | F32: =IF(H31>0,(H31*Steuerung!$G$10*C32)/360,0) -> 0 | G32: 0 | H32: 0
B33: =IF(Steuerung!$H$13=1,DATE(Steuerung!$D$11+28,Steuerung!$C$11,Steuerung!$B$11),IF(Steuerung!$H$13=2,DATE(Steuerung!$D$11,Steuerung!$C$11+82,Steuerung!$B$11),DATE(Steuerung!$D$11,Steuerung!$C$11+28,Steuerung!$B$11))) -> 2034-07-12 | C33: =IF(Steuerung!$H$13=1,360,IF(Steuerung!$H$13=2,90,30)) -> 360 | D33: =Steuerung!$G$9*(Steuerung!$G$10+Steuerung!$G$11) -> 79949.23875 | E33: 0 | F33: =IF(H32>0,(H32*Steuerung!$G$10*C33)/360,0) -> 0 | G33: 0 | H33: 0
B34: =IF(Steuerung!$H$13=1,DATE(Steuerung!$D$11+29,Steuerung!$C$11,Steuerung!$B$11),IF(Steuerung!$H$13=2,DATE(Steuerung!$D$11,Steuerung!$C$11+85,Steuerung!$B$11),DATE(Steuerung!$D$11,Steuerung!$C$11+29,Steuerung!$B$11))) -> 2035-07-12 | C34: =IF(Steuerung!$H$13=1,360,IF(Steuerung!$H$13=2,90,30)) -> 360 | D34: =Steuerung!$G$9*(Steuerung!$G$10+Steuerung!$G$11) -> 79949.23875 | E34: 0 | F34: =IF(H33>0,(H33*Steuerung!$G$10*C34)/360,0) -> 0 | G34: 0 | H34: 0
B35: =IF(Steuerung!$H$13=1,DATE(Steuerung!$D$11+30,Steuerung!$C$11,Steuerung!$B$11),IF(Steuerung!$H$13=2,DATE(Steuerung!$D$11,Steuerung!$C$11+88,Steuerung!$B$11),DATE(Steuerung!$D$11,Steuerung!$C$11+30,Steuerung!$B$11))) -> 2036-07-12 | C35: =IF(Steuerung!$H$13=1,360,IF(Steuerung!$H$13=2,90,30)) -> 360 | D35: =Steuerung!$G$9*(Steuerung!$G$10+Steuerung!$G$11) -> 79949.23875 | E35: =F35+G35 -> 0 | F35: =IF(H34>0,(H34*Steuerung!$G$10*C35)/360,0) -> 0 | G35: =IF((H34+F35)>D35,D35-F35,H34) -> 0 | H35: =IF((H34-G35)>0,(H34-G35),0) -> 0
B36: =IF(Steuerung!$H$13=1,DATE(Steuerung!$D$11+31,Steuerung!$C$11,Steuerung!$B$11),IF(Steuerung!$H$13=2,DATE(Steuerung!$D$11,Steuerung!$C$11+91,Steuerung!$B$11),DATE(Steuerung!$D$11,Steuerung!$C$11+31,Steuerung!$B$11))) -> 2037-07-12 | C36: =IF(Steuerung!$H$13=1,360,IF(Steuerung!$H$13=2,90,30)) -> 360 | D36: =Steuerung!$G$9*(Steuerung!$G$10+Steuerung!$G$11) -> 79949.23875 | E36: 0 | F36: =IF(H35>0,(H35*Steuerung!$G$10*C36)/360,0) -> 0 | G36: 0 | H36: 0
B37: =IF(Steuerung!$H$13=1,DATE(Steuerung!$D$11+32,Steuerung!$C$11,Steuerung!$B$11),IF(Steuerung!$H$13=2,DATE(Steuerung!$D$11,Steuerung!$C$11+94,Steuerung!$B$11),DATE(Steuerung!$D$11,Steuerung!$C$11+32,Steuerung!$B$11))) -> 2038-07-12 | C37: =IF(Steuerung!$H$13=1,360,IF(Steuerung!$H$13=2,90,30)) -> 360 | D37: =Steuerung!$G$9*(Steuerung!$G$10+Steuerung!$G$11) -> 79949.23875 | E37: 0 | F37: =IF(H36>0,(H36*Steuerung!$G$10*C37)/360,0) -> 0 | G37: 0 | H37: 0
B38: =IF(Steuerung!$H$13=1,DATE(Steuerung!$D$11+33,Steuerung!$C$11,Steuerung!$B$11),IF(Steuerung!$H$13=2,DATE(Steuerung!$D$11,Steuerung!$C$11+97,Steuerung!$B$11),DATE(Steuerung!$D$11,Steuerung!$C$11+33,Steuerung!$B$11))) -> 2039-07-12 | C38: =IF(Steuerung!$H$13=1,360,IF(Steuerung!$H$13=2,90,30)) -> 360 | D38: =Steuerung!$G$9*(Steuerung!$G$10+Steuerung!$G$11) -> 79949.23875 | E38: 0 | F38: =IF(H37>0,(H37*Steuerung!$G$10*C38)/360,0) -> 0 | G38: 0 | H38: 0
B39: =IF(Steuerung!$H$13=1,DATE(Steuerung!$D$11+34,Steuerung!$C$11,Steuerung!$B$11),IF(Steuerung!$H$13=2,DATE(Steuerung!$D$11,Steuerung!$C$11+100,Steuerung!$B$11),DATE(Steuerung!$D$11,Steuerung!$C$11+34,Steuerung!$B$11))) -> 2040-07-12 | C39: =IF(Steuerung!$H$13=1,360,IF(Steuerung!$H$13=2,90,30)) -> 360 | D39: =Steuerung!$G$9*(Steuerung!$G$10+Steuerung!$G$11) -> 79949.23875 | E39: 0 | F39: =IF(H38>0,(H38*Steuerung!$G$10*C39)/360,0) -> 0 | G39: 0 | H39: 0
B40: =IF(Steuerung!$H$13=1,DATE(Steuerung!$D$11+35,Steuerung!$C$11,Steuerung!$B$11),IF(Steuerung!$H$13=2,DATE(Steuerung!$D$11,Steuerung!$C$11+103,Steuerung!$B$11),DATE(Steuerung!$D$11,Steuerung!$C$11+35,Steuerung!$B$11))) -> 2041-07-12 | C40: =IF(Steuerung!$H$13=1,360,IF(Steuerung!$H$13=2,90,30)) -> 360 | D40: =Steuerung!$G$9*(Steuerung!$G$10+Steuerung!$G$11) -> 79949.23875 | E40: 0 | F40: =IF(H39>0,(H39*Steuerung!$G$10*C40)/360,0) -> 0 | G40: 0 | H40: 0
B41: =IF(Steuerung!$H$13=1,DATE(Steuerung!$D$11+36,Steuerung!$C$11,Steuerung!$B$11),IF(Steuerung!$H$13=2,DATE(Steuerung!$D$11,Steuerung!$C$11+106,Steuerung!$B$11),DATE(Steuerung!$D$11,Steuerung!$C$11+36,Steuerung!$B$11))) -> 2042-07-12 | C41: =IF(Steuerung!$H$13=1,360,IF(Steuerung!$H$13=2,90,30)) -> 360 | D41: =Steuerung!$G$9*(Steuerung!$G$10+Steuerung!$G$11) -> 79949.23875 | E41: 0 | F41: =IF(H40>0,(H40*Steuerung!$G$10*C41)/360,0) -> 0 | G41: 0 | H41: 0
B42: =IF(Steuerung!$H$13=1,DATE(Steuerung!$D$11+37,Steuerung!$C$11,Steuerung!$B$11),IF(Steuerung!$H$13=2,DATE(Steuerung!$D$11,Steuerung!$C$11+109,Steuerung!$B$11),DATE(Steuerung!$D$11,Steuerung!$C$11+37,Steuerung!$B$11))) -> 2043-07-12 | C42: =IF(Steuerung!$H$13=1,360,IF(Steuerung!$H$13=2,90,30)) -> 360 | D42: =Steuerung!$G$9*(Steuerung!$G$10+Steuerung!$G$11) -> 79949.23875 | E42: 0 | F42: =IF(H41>0,(H41*Steuerung!$G$10*C42)/360,0) -> 0 | G42: 0 | H42: 0
B43: =IF(Steuerung!$H$13=1,DATE(Steuerung!$D$11+38,Steuerung!$C$11,Steuerung!$B$11),IF(Steuerung!$H$13=2,DATE(Steuerung!$D$11,Steuerung!$C$11+112,Steuerung!$B$11),DATE(Steuerung!$D$11,Steuerung!$C$11+38,Steuerung!$B$11))) -> 2044-07-12 | C43: =IF(Steuerung!$H$13=1,360,IF(Steuerung!$H$13=2,90,30)) -> 360 | D43: =Steuerung!$G$9*(Steuerung!$G$10+Steuerung!$G$11) -> 79949.23875 | E43: 0 | F43: =IF(H42>0,(H42*Steuerung!$G$10*C43)/360,0) -> 0 | G43: 0 | H43: 0
B44: =IF(Steuerung!$H$13=1,DATE(Steuerung!$D$11+39,Steuerung!$C$11,Steuerung!$B$11),IF(Steuerung!$H$13=2,DATE(Steuerung!$D$11,Steuerung!$C$11+115,Steuerung!$B$11),DATE(Steuerung!$D$11,Steuerung!$C$11+39,Steuerung!$B$11))) -> 2045-07-12 | C44: =IF(Steuerung!$H$13=1,360,IF(Steuerung!$H$13=2,90,30)) -> 360 | D44: =Steuerung!$G$9*(Steuerung!$G$10+Steuerung!$G$11) -> 79949.23875 | E44: 0 | F44: =IF(H43>0,(H43*Steuerung!$G$10*C44)/360,0) -> 0 | G44: 0 | H44: 0
B45: =IF(Steuerung!$H$13=1,DATE(Steuerung!$D$11+40,Steuerung!$C$11,Steuerung!$B$11),IF(Steuerung!$H$13=2,DATE(Steuerung!$D$11,Steuerung!$C$11+118,Steuerung!$B$11),DATE(Steuerung!$D$11,Steuerung!$C$11+40,Steuerung!$B$11))) -> 2046-07-12 | C45: =IF(Steuerung!$H$13=1,360,IF(Steuerung!$H$13=2,90,30)) -> 360 | D45: =Steuerung!$G$9*(Steuerung!$G$10+Steuerung!$G$11) -> 79949.23875 | E45: 0 | F45: =IF(H44>0,(H44*Steuerung!$G$10*C45)/360,0) -> 0 | G45: 0 | H45: 0
B46: =IF(Steuerung!$H$13=1,DATE(Steuerung!$D$11+41,Steuerung!$C$11,Steuerung!$B$11),IF(Steuerung!$H$13=2,DATE(Steuerung!$D$11,Steuerung!$C$11+121,Steuerung!$B$11),DATE(Steuerung!$D$11,Steuerung!$C$11+41,Steuerung!$B$11))) -> 2047-07-12 | C46: =IF(Steuerung!$H$13=1,360,IF(Steuerung!$H$13=2,90,30)) -> 360 | D46: =Steuerung!$G$9*(Steuerung!$G$10+Steuerung!$G$11) -> 79949.23875 | E46: 0 | F46: =IF(H45>0,(H45*Steuerung!$G$10*C46)/360,0) -> 0 | G46: 0 | H46: 0
B47: =IF(Steuerung!$H$13=1,DATE(Steuerung!$D$11+42,Steuerung!$C$11,Steuerung!$B$11),IF(Steuerung!$H$13=2,DATE(Steuerung!$D$11,Steuerung!$C$11+124,Steuerung!$B$11),DATE(Steuerung!$D$11,Steuerung!$C$11+42,Steuerung!$B$11))) -> 2048-07-12 | C47: =IF(Steuerung!$H$13=1,360,IF(Steuerung!$H$13=2,90,30)) -> 360 | D47: =Steuerung!$G$9*(Steuerung!$G$10+Steuerung!$G$11) -> 79949.23875 | E47: 0 | F47: =IF(H46>0,(H46*Steuerung!$G$10*C47)/360,0) -> 0 | G47: 0 | H47: 0
B48: =IF(Steuerung!$H$13=1,DATE(Steuerung!$D$11+43,Steuerung!$C$11,Steuerung!$B$11),IF(Steuerung!$H$13=2,DATE(Steuerung!$D$11,Steuerung!$C$11+127,Steuerung!$B$11),DATE(Steuerung!$D$11,Steuerung!$C$11+43,Steuerung!$B$11))) -> 2049-07-12 | C48: =IF(Steuerung!$H$13=1,360,IF(Steuerung!$H$13=2,90,30)) -> 360 | D48: =Steuerung!$G$9*(Steuerung!$G$10+Steuerung!$G$11) -> 79949.23875 | E48: 0 | F48: =IF(H47>0,(H47*Steuerung!$G$10*C48)/360,0) -> 0 | G48: 0 | H48: 0
B49: =IF(Steuerung!$H$13=1,DATE(Steuerung!$D$11+44,Steuerung!$C$11,Steuerung!$B$11),IF(Steuerung!$H$13=2,DATE(Steuerung!$D$11,Steuerung!$C$11+130,Steuerung!$B$11),DATE(Steuerung!$D$11,Steuerung!$C$11+44,Steuerung!$B$11))) -> 2050-07-12 | C49: =IF(Steuerung!$H$13=1,360,IF(Steuerung!$H$13=2,90,30)) -> 360 | D49: =Steuerung!$G$9*(Steuerung!$G$10+Steuerung!$G$11) -> 79949.23875 | E49: 0 | F49: =IF(H48>0,(H48*Steuerung!$G$10*C49)/360,0) -> 0 | G49: 0 | H49: 0
B50: =IF(Steuerung!$H$13=1,DATE(Steuerung!$D$11+45,Steuerung!$C$11,Steuerung!$B$11),IF(Steuerung!$H$13=2,DATE(Steuerung!$D$11,Steuerung!$C$11+133,Steuerung!$B$11),DATE(Steuerung!$D$11,Steuerung!$C$11+45,Steuerung!$B$11))) -> 2051-07-12 | C50: =IF(Steuerung!$H$13=1,360,IF(Steuerung!$H$13=2,90,30)) -> 360 | D50: =Steuerung!$G$9*(Steuerung!$G$10+Steuerung!$G$11) -> 79949.23875 | E50: 0 | F50: =IF(H49>0,(H49*Steuerung!$G$10*C50)/360,0) -> 0 | G50: 0 | H50: 0
B51: =IF(Steuerung!$H$13=1,DATE(Steuerung!$D$11+46,Steuerung!$C$11,Steuerung!$B$11),IF(Steuerung!$H$13=2,DATE(Steuerung!$D$11,Steuerung!$C$11+136,Steuerung!$B$11),DATE(Steuerung!$D$11,Steuerung!$C$11+46,Steuerung!$B$11))) -> 2052-07-12 | C51: =IF(Steuerung!$H$13=1,360,IF(Steuerung!$H$13=2,90,30)) -> 360 | D51: =Steuerung!$G$9*(Steuerung!$G$10+Steuerung!$G$11) -> 79949.23875 | E51: 0 | F51: =IF(H50>0,(H50*Steuerung!$G$10*C51)/360,0) -> 0 | G51: 0 | H51: 0
B52: =IF(Steuerung!$H$13=1,DATE(Steuerung!$D$11+47,Steuerung!$C$11,Steuerung!$B$11),IF(Steuerung!$H$13=2,DATE(Steuerung!$D$11,Steuerung!$C$11+139,Steuerung!$B$11),DATE(Steuerung!$D$11,Steuerung!$C$11+47,Steuerung!$B$11))) -> 2053-07-12 | C52: =IF(Steuerung!$H$13=1,360,IF(Steuerung!$H$13=2,90,30)) -> 360 | D52: =Steuerung!$G$9*(Steuerung!$G$10+Steuerung!$G$11) -> 79949.23875 | E52: 0 | F52: =IF(H51>0,(H51*Steuerung!$G$10*C52)/360,0) -> 0 | G52: 0 | H52: 0
B53: =IF(Steuerung!$H$13=1,DATE(Steuerung!$D$11+48,Steuerung!$C$11,Steuerung!$B$11),IF(Steuerung!$H$13=2,DATE(Steuerung!$D$11,Steuerung!$C$11+142,Steuerung!$B$11),DATE(Steuerung!$D$11,Steuerung!$C$11+48,Steuerung!$B$11))) -> 2054-07-12 | C53: =IF(Steuerung!$H$13=1,360,IF(Steuerung!$H$13=2,90,30)) -> 360 | D53: =Steuerung!$G$9*(Steuerung!$G$10+Steuerung!$G$11) -> 79949.23875 | E53: 0 | F53: =IF(H52>0,(H52*Steuerung!$G$10*C53)/360,0) -> 0 | G53: 0 | H53: 0
B54: =IF(Steuerung!$H$13=1,DATE(Steuerung!$D$11+49,Steuerung!$C$11,Steuerung!$B$11),IF(Steuerung!$H$13=2,DATE(Steuerung!$D$11,Steuerung!$C$11+145,Steuerung!$B$11),DATE(Steuerung!$D$11,Steuerung!$C$11+49,Steuerung!$B$11))) -> 2055-07-12 | C54: =IF(Steuerung!$H$13=1,360,IF(Steuerung!$H$13=2,90,30)) -> 360 | D54: =Steuerung!$G$9*(Steuerung!$G$10+Steuerung!$G$11) -> 79949.23875 | E54: 0 | F54: =IF(H53>0,(H53*Steuerung!$G$10*C54)/360,0) -> 0 | G54: 0 | H54: 0
B55: =IF(Steuerung!$H$13=1,DATE(Steuerung!$D$11+50,Steuerung!$C$11,Steuerung!$B$11),IF(Steuerung!$H$13=2,DATE(Steuerung!$D$11,Steuerung!$C$11+148,Steuerung!$B$11),DATE(Steuerung!$D$11,Steuerung!$C$11+50,Steuerung!$B$11))) -> 2056-07-12 | C55: =IF(Steuerung!$H$13=1,360,IF(Steuerung!$H$13=2,90,30)) -> 360 | D55: =Steuerung!$G$9*(Steuerung!$G$10+Steuerung!$G$11) -> 79949.23875 | E55: 0 | F55: =IF(H54>0,(H54*Steuerung!$G$10*C55)/360,0) -> 0 | G55: 0 | H55: 0
B56: =IF(Steuerung!$H$13=1,DATE(Steuerung!$D$11+51,Steuerung!$C$11,Steuerung!$B$11),IF(Steuerung!$H$13=2,DATE(Steuerung!$D$11,Steuerung!$C$11+151,Steuerung!$B$11),DATE(Steuerung!$D$11,Steuerung!$C$11+51,Steuerung!$B$11))) -> 2057-07-12 | C56: =IF(Steuerung!$H$13=1,360,IF(Steuerung!$H$13=2,90,30)) -> 360 | D56: =Steuerung!$G$9*(Steuerung!$G$10+Steuerung!$G$11) -> 79949.23875 | E56: =F56+G56 -> 0 | F56: =IF(H55>0,(H55*Steuerung!$G$10*C56)/360,0) -> 0 | G56: =IF((H55+F56)>D56,D56-F56,H55) -> 0 | H56: =IF((H55-G56)>0,(H55-G56),0) -> 0
B57: =IF(Steuerung!$H$13=1,DATE(Steuerung!$D$11+52,Steuerung!$C$11,Steuerung!$B$11),IF(Steuerung!$H$13=2,DATE(Steuerung!$D$11,Steuerung!$C$11+154,Steuerung!$B$11),DATE(Steuerung!$D$11,Steuerung!$C$11+52,Steuerung!$B$11))) -> 2058-07-12 | C57: =IF(Steuerung!$H$13=1,360,IF(Steuerung!$H$13=2,90,30)) -> 360 | D57: =Steuerung!$G$9*(Steuerung!$G$10+Steuerung!$G$11) -> 79949.23875 | E57: 0 | F57: =IF(H56>0,(H56*Steuerung!$G$10*C57)/360,0) -> 0 | G57: 0 | H57: 0
B58: =IF(Steuerung!$H$13=1,DATE(Steuerung!$D$11+53,Steuerung!$C$11,Steuerung!$B$11),IF(Steuerung!$H$13=2,DATE(Steuerung!$D$11,Steuerung!$C$11+157,Steuerung!$B$11),DATE(Steuerung!$D$11,Steuerung!$C$11+53,Steuerung!$B$11))) -> 2059-07-12 | C58: =IF(Steuerung!$H$13=1,360,IF(Steuerung!$H$13=2,90,30)) -> 360 | D58: =Steuerung!$G$9*(Steuerung!$G$10+Steuerung!$G$11) -> 79949.23875 | E58: 0 | F58: =IF(H57>0,(H57*Steuerung!$G$10*C58)/360,0) -> 0 | G58: 0 | H58: 0
B59: =IF(Steuerung!$H$13=1,DATE(Steuerung!$D$11+54,Steuerung!$C$11,Steuerung!$B$11),IF(Steuerung!$H$13=2,DATE(Steuerung!$D$11,Steuerung!$C$11+160,Steuerung!$B$11),DATE(Steuerung!$D$11,Steuerung!$C$11+54,Steuerung!$B$11))) -> 2060-07-12 | C59: =IF(Steuerung!$H$13=1,360,IF(Steuerung!$H$13=2,90,30)) -> 360 | D59: =Steuerung!$G$9*(Steuerung!$G$10+Steuerung!$G$11) -> 79949.23875 | E59: 0 | F59: =IF(H58>0,(H58*Steuerung!$G$10*C59)/360,0) -> 0 | G59: 0 | H59: 0
B60: =IF(Steuerung!$H$13=1,DATE(Steuerung!$D$11+55,Steuerung!$C$11,Steuerung!$B$11),IF(Steuerung!$H$13=2,DATE(Steuerung!$D$11,Steuerung!$C$11+163,Steuerung!$B$11),DATE(Steuerung!$D$11,Steuerung!$C$11+55,Steuerung!$B$11))) -> 2061-07-12 | C60: =IF(Steuerung!$H$13=1,360,IF(Steuerung!$H$13=2,90,30)) -> 360 | D60: =Steuerung!$G$9*(Steuerung!$G$10+Steuerung!$G$11) -> 79949.23875 | E60: 0 | F60: =IF(H59>0,(H59*Steuerung!$G$10*C60)/360,0) -> 0 | G60: 0 | H60: 0
B61: =IF(Steuerung!$H$13=1,DATE(Steuerung!$D$11+56,Steuerung!$C$11,Steuerung!$B$11),IF(Steuerung!$H$13=2,DATE(Steuerung!$D$11,Steuerung!$C$11+166,Steuerung!$B$11),DATE(Steuerung!$D$11,Steuerung!$C$11+56,Steuerung!$B$11))) -> 2062-07-12 | C61: =IF(Steuerung!$H$13=1,360,IF(Steuerung!$H$13=2,90,30)) -> 360 | D61: =Steuerung!$G$9*(Steuerung!$G$10+Steuerung!$G$11) -> 79949.23875 | E61: 0 | F61: =IF(H60>0,(H60*Steuerung!$G$10*C61)/360,0) -> 0 | G61: 0 | H61: 0
B62: =IF(Steuerung!$H$13=1,DATE(Steuerung!$D$11+57,Steuerung!$C$11,Steuerung!$B$11),IF(Steuerung!$H$13=2,DATE(Steuerung!$D$11,Steuerung!$C$11+169,Steuerung!$B$11),DATE(Steuerung!$D$11,Steuerung!$C$11+57,Steuerung!$B$11))) -> 2063-07-12 | C62: =IF(Steuerung!$H$13=1,360,IF(Steuerung!$H$13=2,90,30)) -> 360 | D62: =Steuerung!$G$9*(Steuerung!$G$10+Steuerung!$G$11) -> 79949.23875 | E62: 0 | F62: =IF(H61>0,(H61*Steuerung!$G$10*C62)/360,0) -> 0 | G62: 0 | H62: 0
B63: =IF(Steuerung!$H$13=1,DATE(Steuerung!$D$11+58,Steuerung!$C$11,Steuerung!$B$11),IF(Steuerung!$H$13=2,DATE(Steuerung!$D$11,Steuerung!$C$11+172,Steuerung!$B$11),DATE(Steuerung!$D$11,Steuerung!$C$11+58,Steuerung!$B$11))) -> 2064-07-12 | C63: =IF(Steuerung!$H$13=1,360,IF(Steuerung!$H$13=2,90,30)) -> 360 | D63: =Steuerung!$G$9*(Steuerung!$G$10+Steuerung!$G$11) -> 79949.23875 | E63: 0 | F63: =IF(H62>0,(H62*Steuerung!$G$10*C63)/360,0) -> 0 | G63: 0 | H63: 0
B64: =IF(Steuerung!$H$13=1,DATE(Steuerung!$D$11+59,Steuerung!$C$11,Steuerung!$B$11),IF(Steuerung!$H$13=2,DATE(Steuerung!$D$11,Steuerung!$C$11+175,Steuerung!$B$11),DATE(Steuerung!$D$11,Steuerung!$C$11+59,Steuerung!$B$11))) -> 2065-07-12 | C64: =IF(Steuerung!$H$13=1,360,IF(Steuerung!$H$13=2,90,30)) -> 360 | D64: =Steuerung!$G$9*(Steuerung!$G$10+Steuerung!$G$11) -> 79949.23875 | E64: 0 | F64: =IF(H63>0,(H63*Steuerung!$G$10*C64)/360,0) -> 0 | G64: 0 | H64: 0
B65: =IF(Steuerung!$H$13=1,DATE(Steuerung!$D$11+60,Steuerung!$C$11,Steuerung!$B$11),IF(Steuerung!$H$13=2,DATE(Steuerung!$D$11,Steuerung!$C$11+178,Steuerung!$B$11),DATE(Steuerung!$D$11,Steuerung!$C$11+60,Steuerung!$B$11))) -> 2066-07-12 | C65: =IF(Steuerung!$H$13=1,360,IF(Steuerung!$H$13=2,90,30)) -> 360 | D65: =Steuerung!$G$9*(Steuerung!$G$10+Steuerung!$G$11) -> 79949.23875 | E65: 0 | F65: =IF(H64>0,(H64*Steuerung!$G$10*C65)/360,0) -> 0 | G65: 0 | H65: 0
B66: =IF(Steuerung!$H$13=1,DATE(Steuerung!$D$11+61,Steuerung!$C$11,Steuerung!$B$11),IF(Steuerung!$H$13=2,DATE(Steuerung!$D$11,Steuerung!$C$11+181,Steuerung!$B$11),DATE(Steuerung!$D$11,Steuerung!$C$11+61,Steuerung!$B$11))) -> 2067-07-12 | C66: =IF(Steuerung!$H$13=1,360,IF(Steuerung!$H$13=2,90,30)) -> 360 | D66: =Steuerung!$G$9*(Steuerung!$G$10+Steuerung!$G$11) -> 79949.23875 | E66: 0 | F66: =IF(H65>0,(H65*Steuerung!$G$10*C66)/360,0) -> 0 | G66: 0 | H66: 0
B67: =IF(Steuerung!$H$13=1,DATE(Steuerung!$D$11+62,Steuerung!$C$11,Steuerung!$B$11),IF(Steuerung!$H$13=2,DATE(Steuerung!$D$11,Steuerung!$C$11+184,Steuerung!$B$11),DATE(Steuerung!$D$11,Steuerung!$C$11+62,Steuerung!$B$11))) -> 2068-07-12 | C67: =IF(Steuerung!$H$13=1,360,IF(Steuerung!$H$13=2,90,30)) -> 360 | D67: =Steuerung!$G$9*(Steuerung!$G$10+Steuerung!$G$11) -> 79949.23875 | E67: 0 | F67: =IF(H66>0,(H66*Steuerung!$G$10*C67)/360,0) -> 0 | G67: 0 | H67: 0
B68: =IF(Steuerung!$H$13=1,DATE(Steuerung!$D$11+63,Steuerung!$C$11,Steuerung!$B$11),IF(Steuerung!$H$13=2,DATE(Steuerung!$D$11,Steuerung!$C$11+187,Steuerung!$B$11),DATE(Steuerung!$D$11,Steuerung!$C$11+63,Steuerung!$B$11))) -> 2069-07-12 | C68: =IF(Steuerung!$H$13=1,360,IF(Steuerung!$H$13=2,90,30)) -> 360 | D68: =Steuerung!$G$9*(Steuerung!$G$10+Steuerung!$G$11) -> 79949.23875 | E68: 0 | F68: =IF(H67>0,(H67*Steuerung!$G$10*C68)/360,0) -> 0 | G68: 0 | H68: 0
B69: =IF(Steuerung!$H$13=1,DATE(Steuerung!$D$11+64,Steuerung!$C$11,Steuerung!$B$11),IF(Steuerung!$H$13=2,DATE(Steuerung!$D$11,Steuerung!$C$11+190,Steuerung!$B$11),DATE(Steuerung!$D$11,Steuerung!$C$11+64,Steuerung!$B$11))) -> 2070-07-12 | C69: =IF(Steuerung!$H$13=1,360,IF(Steuerung!$H$13=2,90,30)) -> 360 | D69: =Steuerung!$G$9*(Steuerung!$G$10+Steuerung!$G$11) -> 79949.23875 | E69: 0 | F69: =IF(H68>0,(H68*Steuerung!$G$10*C69)/360,0) -> 0 | G69: 0 | H69: 0
B70: =IF(Steuerung!$H$13=1,DATE(Steuerung!$D$11+65,Steuerung!$C$11,Steuerung!$B$11),IF(Steuerung!$H$13=2,DATE(Steuerung!$D$11,Steuerung!$C$11+193,Steuerung!$B$11),DATE(Steuerung!$D$11,Steuerung!$C$11+65,Steuerung!$B$11))) -> 2071-07-12 | C70: =IF(Steuerung!$H$13=1,360,IF(Steuerung!$H$13=2,90,30)) -> 360 | D70: =Steuerung!$G$9*(Steuerung!$G$10+Steuerung!$G$11) -> 79949.23875 | E70: 0 | F70: =IF(H69>0,(H69*Steuerung!$G$10*C70)/360,0) -> 0 | G70: 0 | H70: 0
B71: =IF(Steuerung!$H$13=1,DATE(Steuerung!$D$11+66,Steuerung!$C$11,Steuerung!$B$11),IF(Steuerung!$H$13=2,DATE(Steuerung!$D$11,Steuerung!$C$11+196,Steuerung!$B$11),DATE(Steuerung!$D$11,Steuerung!$C$11+66,Steuerung!$B$11))) -> 2072-07-12 | C71: =IF(Steuerung!$H$13=1,360,IF(Steuerung!$H$13=2,90,30)) -> 360 | D71: =Steuerung!$G$9*(Steuerung!$G$10+Steuerung!$G$11) -> 79949.23875 | E71: 0 | F71: =IF(H70>0,(H70*Steuerung!$G$10*C71)/360,0) -> 0 | G71: 0 | H71: 0
B72: =IF(Steuerung!$H$13=1,DATE(Steuerung!$D$11+67,Steuerung!$C$11,Steuerung!$B$11),IF(Steuerung!$H$13=2,DATE(Steuerung!$D$11,Steuerung!$C$11+199,Steuerung!$B$11),DATE(Steuerung!$D$11,Steuerung!$C$11+67,Steuerung!$B$11))) -> 2073-07-12 | C72: =IF(Steuerung!$H$13=1,360,IF(Steuerung!$H$13=2,90,30)) -> 360 | D72: =Steuerung!$G$9*(Steuerung!$G$10+Steuerung!$G$11) -> 79949.23875 | E72: 0 | F72: =IF(H71>0,(H71*Steuerung!$G$10*C72)/360,0) -> 0 | G72: 0 | H72: 0
B73: =IF(Steuerung!$H$13=1,DATE(Steuerung!$D$11+68,Steuerung!$C$11,Steuerung!$B$11),IF(Steuerung!$H$13=2,DATE(Steuerung!$D$11,Steuerung!$C$11+202,Steuerung!$B$11),DATE(Steuerung!$D$11,Steuerung!$C$11+68,Steuerung!$B$11))) -> 2074-07-12 | C73: =IF(Steuerung!$H$13=1,360,IF(Steuerung!$H$13=2,90,30)) -> 360 | D73: =Steuerung!$G$9*(Steuerung!$G$10+Steuerung!$G$11) -> 79949.23875 | E73: 0 | F73: =IF(H72>0,(H72*Steuerung!$G$10*C73)/360,0) -> 0 | G73: 0 | H73: 0
B74: =IF(Steuerung!$H$13=1,DATE(Steuerung!$D$11+69,Steuerung!$C$11,Steuerung!$B$11),IF(Steuerung!$H$13=2,DATE(Steuerung!$D$11,Steuerung!$C$11+205,Steuerung!$B$11),DATE(Steuerung!$D$11,Steuerung!$C$11+69,Steuerung!$B$11))) -> 2075-07-12 | C74: =IF(Steuerung!$H$13=1,360,IF(Steuerung!$H$13=2,90,30)) -> 360 | D74: =Steuerung!$G$9*(Steuerung!$G$10+Steuerung!$G$11) -> 79949.23875 | E74: 0 | F74: =IF(H73>0,(H73*Steuerung!$G$10*C74)/360,0) -> 0 | G74: 0 | H74: 0
B75: =IF(Steuerung!$H$13=1,DATE(Steuerung!$D$11+70,Steuerung!$C$11,Steuerung!$B$11),IF(Steuerung!$H$13=2,DATE(Steuerung!$D$11,Steuerung!$C$11+208,Steuerung!$B$11),DATE(Steuerung!$D$11,Steuerung!$C$11+70,Steuerung!$B$11))) -> 2076-07-12 | C75: =IF(Steuerung!$H$13=1,360,IF(Steuerung!$H$13=2,90,30)) -> 360 | D75: =Steuerung!$G$9*(Steuerung!$G$10+Steuerung!$G$11) -> 79949.23875 | E75: 0 | F75: =IF(H74>0,(H74*Steuerung!$G$10*C75)/360,0) -> 0 | G75: 0 | H75: 0
B76: =IF(Steuerung!$H$13=1,DATE(Steuerung!$D$11+71,Steuerung!$C$11,Steuerung!$B$11),IF(Steuerung!$H$13=2,DATE(Steuerung!$D$11,Steuerung!$C$11+211,Steuerung!$B$11),DATE(Steuerung!$D$11,Steuerung!$C$11+71,Steuerung!$B$11))) -> 2077-07-12 | C76: =IF(Steuerung!$H$13=1,360,IF(Steuerung!$H$13=2,90,30)) -> 360 | D76: =Steuerung!$G$9*(Steuerung!$G$10+Steuerung!$G$11) -> 79949.23875 | E76: 0 | F76: =IF(H75>0,(H75*Steuerung!$G$10*C76)/360,0) -> 0 | G76: 0 | H76: 0
B77: =IF(Steuerung!$H$13=1,DATE(Steuerung!$D$11+72,Steuerung!$C$11,Steuerung!$B$11),IF(Steuerung!$H$13=2,DATE(Steuerung!$D$11,Steuerung!$C$11+214,Steuerung!$B$11),DATE(Steuerung!$D$11,Steuerung!$C$11+72,Steuerung!$B$11))) -> 2078-07-12 | C77: =IF(Steuerung!$H$13=1,360,IF(Steuerung!$H$13=2,90,30)) -> 360 | D77: =Steuerung!$G$9*(Steuerung!$G$10+Steuerung!$G$11) -> 79949.23875 | E77: 0 | F77: =IF(H76>0,(H76*Steuerung!$G$10*C77)/360,0) -> 0 | G77: 0 | H77: 0
B78: =IF(Steuerung!$H$13=1,DATE(Steuerung!$D$11+73,Steuerung!$C$11,Steuerung!$B$11),IF(Steuerung!$H$13=2,DATE(Steuerung!$D$11,Steuerung!$C$11+217,Steuerung!$B$11),DATE(Steuerung!$D$11,Steuerung!$C$11+73,Steuerung!$B$11))) -> 2079-07-12 | C78: =IF(Steuerung!$H$13=1,360,IF(Steuerung!$H$13=2,90,30)) -> 360 | D78: =Steuerung!$G$9*(Steuerung!$G$10+Steuerung!$G$11) -> 79949.23875 | E78: 0 | F78: =IF(H77>0,(H77*Steuerung!$G$10*C78)/360,0) -> 0 | G78: 0 | H78: 0
B79: =IF(Steuerung!$H$13=1,DATE(Steuerung!$D$11+74,Steuerung!$C$11,Steuerung!$B$11),IF(Steuerung!$H$13=2,DATE(Steuerung!$D$11,Steuerung!$C$11+220,Steuerung!$B$11),DATE(Steuerung!$D$11,Steuerung!$C$11+74,Steuerung!$B$11))) -> 2080-07-12 | C79: =IF(Steuerung!$H$13=1,360,IF(Steuerung!$H$13=2,90,30)) -> 360 | D79: =Steuerung!$G$9*(Steuerung!$G$10+Steuerung!$G$11) -> 79949.23875 | E79: 0 | F79: =IF(H78>0,(H78*Steuerung!$G$10*C79)/360,0) -> 0 | G79: 0 | H79: 0
B80: =IF(Steuerung!$H$13=1,DATE(Steuerung!$D$11+75,Steuerung!$C$11,Steuerung!$B$11),IF(Steuerung!$H$13=2,DATE(Steuerung!$D$11,Steuerung!$C$11+223,Steuerung!$B$11),DATE(Steuerung!$D$11,Steuerung!$C$11+75,Steuerung!$B$11))) -> 2081-07-12 | C80: =IF(Steuerung!$H$13=1,360,IF(Steuerung!$H$13=2,90,30)) -> 360 | D80: =Steuerung!$G$9*(Steuerung!$G$10+Steuerung!$G$11) -> 79949.23875 | E80: 0 | F80: =IF(H79>0,(H79*Steuerung!$G$10*C80)/360,0) -> 0 | G80: 0 | H80: 0
B81: =IF(Steuerung!$H$13=1,DATE(Steuerung!$D$11+76,Steuerung!$C$11,Steuerung!$B$11),IF(Steuerung!$H$13=2,DATE(Steuerung!$D$11,Steuerung!$C$11+226,Steuerung!$B$11),DATE(Steuerung!$D$11,Steuerung!$C$11+76,Steuerung!$B$11))) -> 2082-07-12 | C81: =IF(Steuerung!$H$13=1,360,IF(Steuerung!$H$13=2,90,30)) -> 360 | D81: =Steuerung!$G$9*(Steuerung!$G$10+Steuerung!$G$11) -> 79949.23875 | E81: 0 | F81: =IF(H80>0,(H80*Steuerung!$G$10*C81)/360,0) -> 0 | G81: 0 | H81: 0
B82: =IF(Steuerung!$H$13=1,DATE(Steuerung!$D$11+77,Steuerung!$C$11,Steuerung!$B$11),IF(Steuerung!$H$13=2,DATE(Steuerung!$D$11,Steuerung!$C$11+229,Steuerung!$B$11),DATE(Steuerung!$D$11,Steuerung!$C$11+77,Steuerung!$B$11))) -> 2083-07-12 | C82: =IF(Steuerung!$H$13=1,360,IF(Steuerung!$H$13=2,90,30)) -> 360 | D82: =Steuerung!$G$9*(Steuerung!$G$10+Steuerung!$G$11) -> 79949.23875 | E82: 0 | F82: =IF(H81>0,(H81*Steuerung!$G$10*C82)/360,0) -> 0 | G82: 0 | H82: 0
B83: =IF(Steuerung!$H$13=1,DATE(Steuerung!$D$11+78,Steuerung!$C$11,Steuerung!$B$11),IF(Steuerung!$H$13=2,DATE(Steuerung!$D$11,Steuerung!$C$11+232,Steuerung!$B$11),DATE(Steuerung!$D$11,Steuerung!$C$11+78,Steuerung!$B$11))) -> 2084-07-12 | C83: =IF(Steuerung!$H$13=1,360,IF(Steuerung!$H$13=2,90,30)) -> 360 | D83: =Steuerung!$G$9*(Steuerung!$G$10+Steuerung!$G$11) -> 79949.23875 | E83: 0 | F83: =IF(H82>0,(H82*Steuerung!$G$10*C83)/360,0) -> 0 | G83: 0 | H83: 0
B84: =IF(Steuerung!$H$13=1,DATE(Steuerung!$D$11+79,Steuerung!$C$11,Steuerung!$B$11),IF(Steuerung!$H$13=2,DATE(Steuerung!$D$11,Steuerung!$C$11+235,Steuerung!$B$11),DATE(Steuerung!$D$11,Steuerung!$C$11+79,Steuerung!$B$11))) -> 2085-07-12 | C84: =IF(Steuerung!$H$13=1,360,IF(Steuerung!$H$13=2,90,30)) -> 360 | D84: =Steuerung!$G$9*(Steuerung!$G$10+Steuerung!$G$11) -> 79949.23875 | E84: 0 | F84: =IF(H83>0,(H83*Steuerung!$G$10*C84)/360,0) -> 0 | G84: 0 | H84: 0
B85: =IF(Steuerung!$H$13=1,DATE(Steuerung!$D$11+80,Steuerung!$C$11,Steuerung!$B$11),IF(Steuerung!$H$13=2,DATE(Steuerung!$D$11,Steuerung!$C$11+238,Steuerung!$B$11),DATE(Steuerung!$D$11,Steuerung!$C$11+80,Steuerung!$B$11))) -> 2086-07-12 | C85: =IF(Steuerung!$H$13=1,360,IF(Steuerung!$H$13=2,90,30)) -> 360 | D85: =Steuerung!$G$9*(Steuerung!$G$10+Steuerung!$G$11) -> 79949.23875 | E85: 0 | F85: =IF(H84>0,(H84*Steuerung!$G$10*C85)/360,0) -> 0 | G85: 0 | H85: 0
B86: =IF(Steuerung!$H$13=1,DATE(Steuerung!$D$11+81,Steuerung!$C$11,Steuerung!$B$11),IF(Steuerung!$H$13=2,DATE(Steuerung!$D$11,Steuerung!$C$11+241,Steuerung!$B$11),DATE(Steuerung!$D$11,Steuerung!$C$11+81,Steuerung!$B$11))) -> 2087-07-12 | C86: =IF(Steuerung!$H$13=1,360,IF(Steuerung!$H$13=2,90,30)) -> 360 | D86: =Steuerung!$G$9*(Steuerung!$G$10+Steuerung!$G$11) -> 79949.23875 | E86: 0 | F86: =IF(H85>0,(H85*Steuerung!$G$10*C86)/360,0) -> 0 | G86: 0 | H86: 0
B87: =IF(Steuerung!$H$13=1,DATE(Steuerung!$D$11+82,Steuerung!$C$11,Steuerung!$B$11),IF(Steuerung!$H$13=2,DATE(Steuerung!$D$11,Steuerung!$C$11+244,Steuerung!$B$11),DATE(Steuerung!$D$11,Steuerung!$C$11+82,Steuerung!$B$11))) -> 2088-07-12 | C87: =IF(Steuerung!$H$13=1,360,IF(Steuerung!$H$13=2,90,30)) -> 360 | D87: =Steuerung!$G$9*(Steuerung!$G$10+Steuerung!$G$11) -> 79949.23875 | E87: 0 | F87: =IF(H86>0,(H86*Steuerung!$G$10*C87)/360,0) -> 0 | G87: 0 | H87: 0
B88: =IF(Steuerung!$H$13=1,DATE(Steuerung!$D$11+83,Steuerung!$C$11,Steuerung!$B$11),IF(Steuerung!$H$13=2,DATE(Steuerung!$D$11,Steuerung!$C$11+247,Steuerung!$B$11),DATE(Steuerung!$D$11,Steuerung!$C$11+83,Steuerung!$B$11))) -> 2089-07-12 | C88: =IF(Steuerung!$H$13=1,360,IF(Steuerung!$H$13=2,90,30)) -> 360 | D88: =Steuerung!$G$9*(Steuerung!$G$10+Steuerung!$G$11) -> 79949.23875 | E88: 0 | F88: =IF(H87>0,(H87*Steuerung!$G$10*C88)/360,0) -> 0 | G88: 0 | H88: 0
B89: =IF(Steuerung!$H$13=1,DATE(Steuerung!$D$11+84,Steuerung!$C$11,Steuerung!$B$11),IF(Steuerung!$H$13=2,DATE(Steuerung!$D$11,Steuerung!$C$11+250,Steuerung!$B$11),DATE(Steuerung!$D$11,Steuerung!$C$11+84,Steuerung!$B$11))) -> 2090-07-12 | C89: =IF(Steuerung!$H$13=1,360,IF(Steuerung!$H$13=2,90,30)) -> 360 | D89: =Steuerung!$G$9*(Steuerung!$G$10+Steuerung!$G$11) -> 79949.23875 | E89: 0 | F89: =IF(H88>0,(H88*Steuerung!$G$10*C89)/360,0) -> 0 | G89: 0 | H89: 0
B90: =IF(Steuerung!$H$13=1,DATE(Steuerung!$D$11+85,Steuerung!$C$11,Steuerung!$B$11),IF(Steuerung!$H$13=2,DATE(Steuerung!$D$11,Steuerung!$C$11+253,Steuerung!$B$11),DATE(Steuerung!$D$11,Steuerung!$C$11+85,Steuerung!$B$11))) -> 2091-07-12 | C90: =IF(Steuerung!$H$13=1,360,IF(Steuerung!$H$13=2,90,30)) -> 360 | D90: =Steuerung!$G$9*(Steuerung!$G$10+Steuerung!$G$11) -> 79949.23875 | E90: 0 | F90: =IF(H89>0,(H89*Steuerung!$G$10*C90)/360,0) -> 0 | G90: 0 | H90: 0
B91: =IF(Steuerung!$H$13=1,DATE(Steuerung!$D$11+86,Steuerung!$C$11,Steuerung!$B$11),IF(Steuerung!$H$13=2,DATE(Steuerung!$D$11,Steuerung!$C$11+256,Steuerung!$B$11),DATE(Steuerung!$D$11,Steuerung!$C$11+86,Steuerung!$B$11))) -> 2092-07-12 | C91: =IF(Steuerung!$H$13=1,360,IF(Steuerung!$H$13=2,90,30)) -> 360 | D91: =Steuerung!$G$9*(Steuerung!$G$10+Steuerung!$G$11) -> 79949.23875 | E91: 0 | F91: =IF(H90>0,(H90*Steuerung!$G$10*C91)/360,0) -> 0 | G91: 0 | H91: 0
B92: =IF(Steuerung!$H$13=1,DATE(Steuerung!$D$11+87,Steuerung!$C$11,Steuerung!$B$11),IF(Steuerung!$H$13=2,DATE(Steuerung!$D$11,Steuerung!$C$11+259,Steuerung!$B$11),DATE(Steuerung!$D$11,Steuerung!$C$11+87,Steuerung!$B$11))) -> 2093-07-12 | C92: =IF(Steuerung!$H$13=1,360,IF(Steuerung!$H$13=2,90,30)) -> 360 | D92: =Steuerung!$G$9*(Steuerung!$G$10+Steuerung!$G$11) -> 79949.23875 | E92: 0 | F92: =IF(H91>0,(H91*Steuerung!$G$10*C92)/360,0) -> 0 | G92: 0 | H92: 0
B93: =IF(Steuerung!$H$13=1,DATE(Steuerung!$D$11+88,Steuerung!$C$11,Steuerung!$B$11),IF(Steuerung!$H$13=2,DATE(Steuerung!$D$11,Steuerung!$C$11+262,Steuerung!$B$11),DATE(Steuerung!$D$11,Steuerung!$C$11+88,Steuerung!$B$11))) -> 2094-07-12 | C93: =IF(Steuerung!$H$13=1,360,IF(Steuerung!$H$13=2,90,30)) -> 360 | D93: =Steuerung!$G$9*(Steuerung!$G$10+Steuerung!$G$11) -> 79949.23875 | E93: 0 | F93: =IF(H92>0,(H92*Steuerung!$G$10*C93)/360,0) -> 0 | G93: 0 | H93: 0
B94: =IF(Steuerung!$H$13=1,DATE(Steuerung!$D$11+89,Steuerung!$C$11,Steuerung!$B$11),IF(Steuerung!$H$13=2,DATE(Steuerung!$D$11,Steuerung!$C$11+265,Steuerung!$B$11),DATE(Steuerung!$D$11,Steuerung!$C$11+89,Steuerung!$B$11))) -> 2095-07-12 | C94: =IF(Steuerung!$H$13=1,360,IF(Steuerung!$H$13=2,90,30)) -> 360 | D94: =Steuerung!$G$9*(Steuerung!$G$10+Steuerung!$G$11) -> 79949.23875 | E94: 0 | F94: =IF(H93>0,(H93*Steuerung!$G$10*C94)/360,0) -> 0 | G94: 0 | H94: 0
B95: =IF(Steuerung!$H$13=1,DATE(Steuerung!$D$11+90,Steuerung!$C$11,Steuerung!$B$11),IF(Steuerung!$H$13=2,DATE(Steuerung!$D$11,Steuerung!$C$11+268,Steuerung!$B$11),DATE(Steuerung!$D$11,Steuerung!$C$11+90,Steuerung!$B$11))) -> 2096-07-12 | C95: =IF(Steuerung!$H$13=1,360,IF(Steuerung!$H$13=2,90,30)) -> 360 | D95: =Steuerung!$G$9*(Steuerung!$G$10+Steuerung!$G$11) -> 79949.23875 | E95: 0 | F95: =IF(H94>0,(H94*Steuerung!$G$10*C95)/360,0) -> 0 | G95: 0 | H95: 0
B96: =IF(Steuerung!$H$13=1,DATE(Steuerung!$D$11+91,Steuerung!$C$11,Steuerung!$B$11),IF(Steuerung!$H$13=2,DATE(Steuerung!$D$11,Steuerung!$C$11+271,Steuerung!$B$11),DATE(Steuerung!$D$11,Steuerung!$C$11+91,Steuerung!$B$11))) -> 2097-07-12 | C96: =IF(Steuerung!$H$13=1,360,IF(Steuerung!$H$13=2,90,30)) -> 360 | D96: =Steuerung!$G$9*(Steuerung!$G$10+Steuerung!$G$11) -> 79949.23875 | E96: 0 | F96: =IF(H95>0,(H95*Steuerung!$G$10*C96)/360,0) -> 0 | G96: 0 | H96: 0
B97: =IF(Steuerung!$H$13=1,DATE(Steuerung!$D$11+92,Steuerung!$C$11,Steuerung!$B$11),IF(Steuerung!$H$13=2,DATE(Steuerung!$D$11,Steuerung!$C$11+274,Steuerung!$B$11),DATE(Steuerung!$D$11,Steuerung!$C$11+92,Steuerung!$B$11))) -> 2098-07-12 | C97: =IF(Steuerung!$H$13=1,360,IF(Steuerung!$H$13=2,90,30)) -> 360 | D97: =Steuerung!$G$9*(Steuerung!$G$10+Steuerung!$G$11) -> 79949.23875 | E97: 0 | F97: =IF(H96>0,(H96*Steuerung!$G$10*C97)/360,0) -> 0 | G97: 0 | H97: 0
B98: =IF(Steuerung!$H$13=1,DATE(Steuerung!$D$11+93,Steuerung!$C$11,Steuerung!$B$11),IF(Steuerung!$H$13=2,DATE(Steuerung!$D$11,Steuerung!$C$11+277,Steuerung!$B$11),DATE(Steuerung!$D$11,Steuerung!$C$11+93,Steuerung!$B$11))) -> 2099-07-12 | C98: =IF(Steuerung!$H$13=1,360,IF(Steuerung!$H$13=2,90,30)) -> 360 | D98: =Steuerung!$G$9*(Steuerung!$G$10+Steuerung!$G$11) -> 79949.23875 | E98: 0 | F98: =IF(H97>0,(H97*Steuerung!$G$10*C98)/360,0) -> 0 | G98: 0 | H98: 0
B99: =IF(Steuerung!$H$13=1,DATE(Steuerung!$D$11+94,Steuerung!$C$11,Steuerung!$B$11),IF(Steuerung!$H$13=2,DATE(Steuerung!$D$11,Steuerung!$C$11+280,Steuerung!$B$11),DATE(Steuerung!$D$11,Steuerung!$C$11+94,Steuerung!$B$11))) -> 2100-07-12 | C99: =IF(Steuerung!$H$13=1,360,IF(Steuerung!$H$13=2,90,30)) -> 360 | D99: =Steuerung!$G$9*(Steuerung!$G$10+Steuerung!$G$11) -> 79949.23875 | E99: 0 | F99: =IF(H98>0,(H98*Steuerung!$G$10*C99)/360,0) -> 0 | G99: 0 | H99: 0
B100: =IF(Steuerung!$H$13=1,DATE(Steuerung!$D$11+95,Steuerung!$C$11,Steuerung!$B$11),IF(Steuerung!$H$13=2,DATE(Steuerung!$D$11,Steuerung!$C$11+283,Steuerung!$B$11),DATE(Steuerung!$D$11,Steuerung!$C$11+95,Steuerung!$B$11))) -> 2101-07-12 | C100: =IF(Steuerung!$H$13=1,360,IF(Steuerung!$H$13=2,90,30)) -> 360 | D100: =Steuerung!$G$9*(Steuerung!$G$10+Steuerung!$G$11) -> 79949.23875 | E100: 0 | F100: =IF(H99>0,(H99*Steuerung!$G$10*C100)/360,0) -> 0 | G100: 0 | H100: 0
B101: =IF(Steuerung!$H$13=1,DATE(Steuerung!$D$11+96,Steuerung!$C$11,Steuerung!$B$11),IF(Steuerung!$H$13=2,DATE(Steuerung!$D$11,Steuerung!$C$11+286,Steuerung!$B$11),DATE(Steuerung!$D$11,Steuerung!$C$11+96,Steuerung!$B$11))) -> 2102-07-12 | C101: =IF(Steuerung!$H$13=1,360,IF(Steuerung!$H$13=2,90,30)) -> 360 | D101: =Steuerung!$G$9*(Steuerung!$G$10+Steuerung!$G$11) -> 79949.23875 | E101: 0 | F101: =IF(H100>0,(H100*Steuerung!$G$10*C101)/360,0) -> 0 | G101: 0 | H101: 0
B102: =IF(Steuerung!$H$13=1,DATE(Steuerung!$D$11+97,Steuerung!$C$11,Steuerung!$B$11),IF(Steuerung!$H$13=2,DATE(Steuerung!$D$11,Steuerung!$C$11+289,Steuerung!$B$11),DATE(Steuerung!$D$11,Steuerung!$C$11+97,Steuerung!$B$11))) -> 2103-07-12 | C102: =IF(Steuerung!$H$13=1,360,IF(Steuerung!$H$13=2,90,30)) -> 360 | D102: =Steuerung!$G$9*(Steuerung!$G$10+Steuerung!$G$11) -> 79949.23875 | E102: 0 | F102: =IF(H101>0,(H101*Steuerung!$G$10*C102)/360,0) -> 0 | G102: 0 | H102: 0
B103: =IF(Steuerung!$H$13=1,DATE(Steuerung!$D$11+98,Steuerung!$C$11,Steuerung!$B$11),IF(Steuerung!$H$13=2,DATE(Steuerung!$D$11,Steuerung!$C$11+292,Steuerung!$B$11),DATE(Steuerung!$D$11,Steuerung!$C$11+98,Steuerung!$B$11))) -> 2104-07-12 | C103: =IF(Steuerung!$H$13=1,360,IF(Steuerung!$H$13=2,90,30)) -> 360 | D103: =Steuerung!$G$9*(Steuerung!$G$10+Steuerung!$G$11) -> 79949.23875 | E103: 0 | F103: =IF(H102>0,(H102*Steuerung!$G$10*C103)/360,0) -> 0 | G103: 0 | H103: 0
B104: =IF(Steuerung!$H$13=1,DATE(Steuerung!$D$11+99,Steuerung!$C$11,Steuerung!$B$11),IF(Steuerung!$H$13=2,DATE(Steuerung!$D$11,Steuerung!$C$11+295,Steuerung!$B$11),DATE(Steuerung!$D$11,Steuerung!$C$11+99,Steuerung!$B$11))) -> 2105-07-12 | C104: =IF(Steuerung!$H$13=1,360,IF(Steuerung!$H$13=2,90,30)) -> 360 | D104: =Steuerung!$G$9*(Steuerung!$G$10+Steuerung!$G$11) -> 79949.23875 | E104: 0 | F104: =IF(H103>0,(H103*Steuerung!$G$10*C104)/360,0) -> 0 | G104: 0 | H104: 0
B105: =IF(Steuerung!$H$13=1,DATE(Steuerung!$D$11+100,Steuerung!$C$11,Steuerung!$B$11),IF(Steuerung!$H$13=2,DATE(Steuerung!$D$11,Steuerung!$C$11+298,Steuerung!$B$11),DATE(Steuerung!$D$11,Steuerung!$C$11+100,Steuerung!$B$11))) -> 2106-07-12 | C105: =IF(Steuerung!$H$13=1,360,IF(Steuerung!$H$13=2,90,30)) -> 360 | D105: =Steuerung!$G$9*(Steuerung!$G$10+Steuerung!$G$11) -> 79949.23875 | E105: 0 | F105: =IF(H104>0,(H104*Steuerung!$G$10*C105)/360,0) -> 0 | G105: 0 | H105: 0
B106: Summen | E106: =SUM(E5:E105) -> 381529.954 | F106: =SUM(F5:F105) -> 26200.00402 | G106: =SUM(G5:G105) -> 355329.95

Sheet Abzahlungsdarlehen
B2: Summe der gezahlten Zinsen | F2: =SUM(F5:F105) -> 26649.74625 | G2: Abzahlungsdarlehen
B3: Abrechnungs- datum | C3: Zinsstage | E3: Kapitaldienst | F3: Zinsen | G3: Tilgung | H3: Restschuld
B5: =IF(Steuerung!$H$13=1,DATE(Steuerung!$D$11+0,Steuerung!$C$11,Steuerung!$B$11),IF(Steuerung!$H$13=2,DATE(Steuerung!$D$11,Steuerung!$C$11+0,Steuerung!$B$11),DATE(Steuerung!$D$11,Steuerung!$C$11+0,Steuerung!$B$11))) -> 2006-07-12 | C5: =IF(Steuerung!$H$13=1,360,IF(Steuerung!$H$13=2,90,30)) -> 360 | D5: 0 | E5: =F5+G5 -> 0 | F5: 0 | G5: 0 | H5: =Steuerung!G9 -> 355329.95
B6: =IF(Steuerung!$H$13=1,DATE(Steuerung!$D$11+1,Steuerung!$C$11,Steuerung!$B$11),IF(Steuerung!$H$13=2,DATE(Steuerung!$D$11,Steuerung!$C$11+3,Steuerung!$B$11),DATE(Steuerung!$D$11,Steuerung!$C$11+1,Steuerung!$B$11))) -> 2007-07-12 | C6: =IF(Steuerung!$H$13=1,360,IF(Steuerung!$H$13=2,90,30)) -> 360 | D6: =(H5*Steuerung!$G$11)+F6 -> 79949.23875 | E6: =F6+G6 -> 79949.23875 | F6: =IF(H5>0,(H5*Steuerung!$G$10*C6)/360,0) -> 8883.24875 | G6: =IF((H5+F6)>D6,Steuerung!$G$9*Steuerung!$G$11,H5) -> 71065.99 | H6: =IF((H5-G6)>0,(H5-G6),0) -> 284263.96
B7: =IF(Steuerung!$H$13=1,DATE(Steuerung!$D$11+2,Steuerung!$C$11,Steuerung!$B$11),IF(Steuerung!$H$13=2,DATE(Steuerung!$D$11,Steuerung!$C$11+6,Steuerung!$B$11),DATE(Steuerung!$D$11,Steuerung!$C$11+2,Steuerung!$B$11))) -> 2008-07-12 | C7: =IF(Steuerung!$H$13=1,360,IF(Steuerung!$H$13=2,90,30)) -> 360 | D7: =(H6*Steuerung!$G$11)+F7 -> 63959.391 | E7: 78172.589 | F7: =IF(H6>0,(H6*Steuerung!$G$10*C7)/360,0) -> 7106.599 | G7: =IF((H6+F7)>D7,Steuerung!$G$9*Steuerung!$G$11,H6) -> 71065.99 | H7: 213197.97
B8: =IF(Steuerung!$H$13=1,DATE(Steuerung!$D$11+3,Steuerung!$C$11,Steuerung!$B$11),IF(Steuerung!$H$13=2,DATE(Steuerung!$D$11,Steuerung!$C$11+9,Steuerung!$B$11),DATE(Steuerung!$D$11,Steuerung!$C$11+3,Steuerung!$B$11))) -> 2009-07-12 | C8: =IF(Steuerung!$H$13=1,360,IF(Steuerung!$H$13=2,90,30)) -> 360 | D8: =(H7*Steuerung!$G$11)+F8 -> 47969.54325 | E8: 76395.93925 | F8: =IF(H7>0,(H7*Steuerung!$G$10*C8)/360,0) -> 5329.94925 | G8: =IF((H7+F8)>D8,Steuerung!$G$9*Steuerung!$G$11,H7) -> 71065.99 | H8: 142131.98
B9: =IF(Steuerung!$H$13=1,DATE(Steuerung!$D$11+4,Steuerung!$C$11,Steuerung!$B$11),IF(Steuerung!$H$13=2,DATE(Steuerung!$D$11,Steuerung!$C$11+12,Steuerung!$B$11),DATE(Steuerung!$D$11,Steuerung!$C$11+4,Steuerung!$B$11))) -> 2010-07-12 | C9: =IF(Steuerung!$H$13=1,360,IF(Steuerung!$H$13=2,90,30)) -> 360 | D9: =(H8*Steuerung!$G$11)+F9 -> 31979.6955 | E9: 74619.2895 | F9: =IF(H8>0,(H8*Steuerung!$G$10*C9)/360,0) -> 3553.2995 | G9: =IF((H8+F9)>D9,Steuerung!$G$9*Steuerung!$G$11,H8) -> 71065.99 | H9: 71065.99
B10: =IF(Steuerung!$H$13=1,DATE(Steuerung!$D$11+5,Steuerung!$C$11,Steuerung!$B$11),IF(Steuerung!$H$13=2,DATE(Steuerung!$D$11,Steuerung!$C$11+15,Steuerung!$B$11),DATE(Steuerung!$D$11,Steuerung!$C$11+5,Steuerung!$B$11))) -> 2011-07-12 | C10: =IF(Steuerung!$H$13=1,360,IF(Steuerung!$H$13=2,90,30)) -> 360 | D10: =(H9*Steuerung!$G$11)+F10 -> 15989.84775 | E10: 72842.63975 | F10: =IF(H9>0,(H9*Steuerung!$G$10*C10)/360,0) -> 1776.64975 | G10: =IF((H9+F10)>D10,Steuerung!$G$9*Steuerung!$G$11,H9) -> 71065.99 | H10: 2.910383046e-11
B11: =IF(Steuerung!$H$13=1,DATE(Steuerung!$D$11+6,Steuerung!$C$11,Steuerung!$B$11),IF(Steuerung!$H$13=2,DATE(Steuerung!$D$11,Steuerung!$C$11+18,Steuerung!$B$11),DATE(Steuerung!$D$11,Steuerung!$C$11+6,Steuerung!$B$11))) -> 2012-07-12 | C11: =IF(Steuerung!$H$13=1,360,IF(Steuerung!$H$13=2,90,30)) -> 360 | D11: =(H10*Steuerung!$G$11)+F11 -> 6.548361853e-12 | E11: 71065.99 | F11: =IF(H10>0,(H10*Steuerung!$G$10*C11)/360,0) -> 7.275957614e-13 | G11: =IF((H10+F11)>D11,Steuerung!$G$9*Steuerung!$G$11,H10) -> 71065.99 | H11: 0
B12: =IF(Steuerung!$H$13=1,DATE(Steuerung!$D$11+7,Steuerung!$C$11,Steuerung!$B$11),IF(Steuerung!$H$13=2,DATE(Steuerung!$D$11,Steuerung!$C$11+21,Steuerung!$B$11),DATE(Steuerung!$D$11,Steuerung!$C$11+7,Steuerung!$B$11))) -> 2013-07-12 | C12: =IF(Steuerung!$H$13=1,360,IF(Steuerung!$H$13=2,90,30)) -> 360 | D12: =(H11*Steuerung!$G$11)+F12 -> 0 | E12: 0 | F12: =IF(H11>0,(H11*Steuerung!$G$10*C12)/360,0) -> 0 | G12: =IF((H11+F12)>D12,Steuerung!$G$9*Steuerung!$G$11,H11) -> 0 | H12: 0
B13: =IF(Steuerung!$H$13=1,DATE(Steuerung!$D$11+8,Steuerung!$C$11,Steuerung!$B$11),IF(Steuerung!$H$13=2,DATE(Steuerung!$D$11,Steuerung!$C$11+24,Steuerung!$B$11),DATE(Steuerung!$D$11,Steuerung!$C$11+8,Steuerung!$B$11))) -> 2014-07-12 | C13: =IF(Steuerung!$H$13=1,360,IF(Steuerung!$H$13=2,90,30)) -> 360 | D13: =(H12*Steuerung!$G$11)+F13 -> 0 | E13: 0 | F13: =IF(H12>0,(H12*Steuerung!$G$10*C13)/360,0) -> 0 | G13: =IF((H12+F13)>D13,Steuerung!$G$9*Steuerung!$G$11,H12) -> 0 | H13: 0
B14: =IF(Steuerung!$H$13=1,DATE(Steuerung!$D$11+9,Steuerung!$C$11,Steuerung!$B$11),IF(Steuerung!$H$13=2,DATE(Steuerung!$D$11,Steuerung!$C$11+27,Steuerung!$B$11),DATE(Steuerung!$D$11,Steuerung!$C$11+9,Steuerung!$B$11))) -> 2015-07-12 | C14: =IF(Steuerung!$H$13=1,360,IF(Steuerung!$H$13=2,90,30)) -> 360 | D14: =(H13*Steuerung!$G$11)+F14 -> 0 | E14: 0 | F14: =IF(H13>0,(H13*Steuerung!$G$10*C14)/360,0) -> 0 | G14: =IF((H13+F14)>D14,Steuerung!$G$9*Steuerung!$G$11,H13) -> 0 | H14: 0
B15: =IF(Steuerung!$H$13=1,DATE(Steuerung!$D$11+10,Steuerung!$C$11,Steuerung!$B$11),IF(Steuerung!$H$13=2,DATE(Steuerung!$D$11,Steuerung!$C$11+30,Steuerung!$B$11),DATE(Steuerung!$D$11,Steuerung!$C$11+10,Steuerung!$B$11))) -> 2016-07-12 | C15: =IF(Steuerung!$H$13=1,360,IF(Steuerung!$H$13=2,90,30)) -> 360 | D15: =(H14*Steuerung!$G$11)+F15 -> 0 | E15: 0 | F15: =IF(H14>0,(H14*Steuerung!$G$10*C15)/360,0) -> 0 | G15: =IF((H14+F15)>D15,Steuerung!$G$9*Steuerung!$G$11,H14) -> 0 | H15: 0
B16: =IF(Steuerung!$H$13=1,DATE(Steuerung!$D$11+11,Steuerung!$C$11,Steuerung!$B$11),IF(Steuerung!$H$13=2,DATE(Steuerung!$D$11,Steuerung!$C$11+33,Steuerung!$B$11),DATE(Steuerung!$D$11,Steuerung!$C$11+11,Steuerung!$B$11))) -> 2017-07-12 | C16: =IF(Steuerung!$H$13=1,360,IF(Steuerung!$H$13=2,90,30)) -> 360 | D16: =(H15*Steuerung!$G$11)+F16 -> 0 | E16: 0 | F16: =IF(H15>0,(H15*Steuerung!$G$10*C16)/360,0) -> 0 | G16: =IF((H15+F16)>D16,Steuerung!$G$9*Steuerung!$G$11,H15) -> 0 | H16: 0
B17: =IF(Steuerung!$H$13=1,DATE(Steuerung!$D$11+12,Steuerung!$C$11,Steuerung!$B$11),IF(Steuerung!$H$13=2,DATE(Steuerung!$D$11,Steuerung!$C$11+36,Steuerung!$B$11),DATE(Steuerung!$D$11,Steuerung!$C$11+12,Steuerung!$B$11))) -> 2018-07-12 | C17: =IF(Steuerung!$H$13=1,360,IF(Steuerung!$H$13=2,90,30)) -> 360 | D17: =(H16*Steuerung!$G$11)+F17 -> 0 | E17: 0 | F17: =IF(H16>0,(H16*Steuerung!$G$10*C17)/360,0) -> 0 | G17: =IF((H16+F17)>D17,Steuerung!$G$9*Steuerung!$G$11,H16) -> 0 | H17: 0
B18: =IF(Steuerung!$H$13=1,DATE(Steuerung!$D$11+13,Steuerung!$C$11,Steuerung!$B$11),IF(Steuerung!$H$13=2,DATE(Steuerung!$D$11,Steuerung!$C$11+39,Steuerung!$B$11),DATE(Steuerung!$D$11,Steuerung!$C$11+13,Steuerung!$B$11))) -> 2019-07-12 | C18: =IF(Steuerung!$H$13=1,360,IF(Steuerung!$H$13=2,90,30)) -> 360 | D18: =(H17*Steuerung!$G$11)+F18 -> 0 | E18: 0 | F18: =IF(H17>0,(H17*Steuerung!$G$10*C18)/360,0) -> 0 | G18: =IF((H17+F18)>D18,Steuerung!$G$9*Steuerung!$G$11,H17) -> 0 | H18: 0
B19: =IF(Steuerung!$H$13=1,DATE(Steuerung!$D$11+14,Steuerung!$C$11,Steuerung!$B$11),IF(Steuerung!$H$13=2,DATE(Steuerung!$D$11,Steuerung!$C$11+42,Steuerung!$B$11),DATE(Steuerung!$D$11,Steuerung!$C$11+14,Steuerung!$B$11))) -> 2020-07-12 | C19: =IF(Steuerung!$H$13=1,360,IF(Steuerung!$H$13=2,90,30)) -> 360 | D19: =(H18*Steuerung!$G$11)+F19 -> 0 | E19: 0 | F19: =IF(H18>0,(H18*Steuerung!$G$10*C19)/360,0) -> 0 | G19: =IF((H18+F19)>D19,Steuerung!$G$9*Steuerung!$G$11,H18) -> 0 | H19: 0
B20: =IF(Steuerung!$H$13=1,DATE(Steuerung!$D$11+15,Steuerung!$C$11,Steuerung!$B$11),IF(Steuerung!$H$13=2,DATE(Steuerung!$D$11,Steuerung!$C$11+45,Steuerung!$B$11),DATE(Steuerung!$D$11,Steuerung!$C$11+15,Steuerung!$B$11))) -> 2021-07-12 | C20: =IF(Steuerung!$H$13=1,360,IF(Steuerung!$H$13=2,90,30)) -> 360 | D20: =(H19*Steuerung!$G$11)+F20 -> 0 | E20: 0 | F20: =IF(H19>0,(H19*Steuerung!$G$10*C20)/360,0) -> 0 | G20: =IF((H19+F20)>D20,Steuerung!$G$9*Steuerung!$G$11,H19) -> 0 | H20: 0
B21: =IF(Steuerung!$H$13=1,DATE(Steuerung!$D$11+16,Steuerung!$C$11,Steuerung!$B$11),IF(Steuerung!$H$13=2,DATE(Steuerung!$D$11,Steuerung!$C$11+48,Steuerung!$B$11),DATE(Steuerung!$D$11,Steuerung!$C$11+16,Steuerung!$B$11))) -> 2022-07-12 | C21: =IF(Steuerung!$H$13=1,360,IF(Steuerung!$H$13=2,90,30)) -> 360 | D21: =(H20*Steuerung!$G$11)+F21 -> 0 | E21: 0 | F21: =IF(H20>0,(H20*Steuerung!$G$10*C21)/360,0) -> 0 | G21: =IF((H20+F21)>D21,Steuerung!$G$9*Steuerung!$G$11,H20) -> 0 | H21: 0
B22: =IF(Steuerung!$H$13=1,DATE(Steuerung!$D$11+17,Steuerung!$C$11,Steuerung!$B$11),IF(Steuerung!$H$13=2,DATE(Steuerung!$D$11,Steuerung!$C$11+49,Steuerung!$B$11),DATE(Steuerung!$D$11,Steuerung!$C$11+17,Steuerung!$B$11))) -> 2023-07-12 | C22: =IF(Steuerung!$H$13=1,360,IF(Steuerung!$H$13=2,90,30)) -> 360 | D22: =(H21*Steuerung!$G$11)+F22 -> 0 | E22: 0 | F22: =IF(H21>0,(H21*Steuerung!$G$10*C22)/360,0) -> 0 | G22: =IF((H21+F22)>D22,Steuerung!$G$9*Steuerung!$G$11,H21) -> 0 | H22: 0
B23: =IF(Steuerung!$H$13=1,DATE(Steuerung!$D$11+18,Steuerung!$C$11,Steuerung!$B$11),IF(Steuerung!$H$13=2,DATE(Steuerung!$D$11,Steuerung!$C$11+52,Steuerung!$B$11),DATE(Steuerung!$D$11,Steuerung!$C$11+18,Steuerung!$B$11))) -> 2024-07-12 | C23: =IF(Steuerung!$H$13=1,360,IF(Steuerung!$H$13=2,90,30)) -> 360 | D23: =(H22*Steuerung!$G$11)+F23 -> 0 | E23: 0 | F23: =IF(H22>0,(H22*Steuerung!$G$10*C23)/360,0) -> 0 | G23: =IF((H22+F23)>D23,Steuerung!$G$9*Steuerung!$G$11,H22) -> 0 | H23: 0
B24: =IF(Steuerung!$H$13=1,DATE(Steuerung!$D$11+19,Steuerung!$C$11,Steuerung!$B$11),IF(Steuerung!$H$13=2,DATE(Steuerung!$D$11,Steuerung!$C$11+55,Steuerung!$B$11),DATE(Steuerung!$D$11,Steuerung!$C$11+19,Steuerung!$B$11))) -> 2025-07-12 | C24: =IF(Steuerung!$H$13=1,360,IF(Steuerung!$H$13=2,90,30)) -> 360 | D24: =(H23*Steuerung!$G$11)+F24 -> 0 | E24: 0 | F24: =IF(H23>0,(H23*Steuerung!$G$10*C24)/360,0) -> 0 | G24: =IF((H23+F24)>D24,Steuerung!$G$9*Steuerung!$G$11,H23) -> 0 | H24: =IF((H23-G24)>0,(H23-G24),0) -> 0
B25: =IF(Steuerung!$H$13=1,DATE(Steuerung!$D$11+20,Steuerung!$C$11,Steuerung!$B$11),IF(Steuerung!$H$13=2,DATE(Steuerung!$D$11,Steuerung!$C$11+58,Steuerung!$B$11),DATE(Steuerung!$D$11,Steuerung!$C$11+20,Steuerung!$B$11))) -> 2026-07-12 | C25: =IF(Steuerung!$H$13=1,360,IF(Steuerung!$H$13=2,90,30)) -> 360 | D25: =(H24*Steuerung!$G$11)+F25 -> 0 | E25: 0 | F25: =IF(H24>0,(H24*Steuerung!$G$10*C25)/360,0) -> 0 | G25: =IF((H24+F25)>D25,Steuerung!$G$9*Steuerung!$G$11,H24) -> 0 | H25: =IF((H24-G25)>0,(H24-G25),0) -> 0
B26: =IF(Steuerung!$H$13=1,DATE(Steuerung!$D$11+21,Steuerung!$C$11,Steuerung!$B$11),IF(Steuerung!$H$13=2,DATE(Steuerung!$D$11,Steuerung!$C$11+61,Steuerung!$B$11),DATE(Steuerung!$D$11,Steuerung!$C$11+21,Steuerung!$B$11))) -> 2027-07-12 | C26: =IF(Steuerung!$H$13=1,360,IF(Steuerung!$H$13=2,90,30)) -> 360 | D26: =(H25*Steuerung!$G$11)+F26 -> 0 | E26: 0 | F26: =IF(H25>0,(H25*Steuerung!$G$10*C26)/360,0) -> 0 | G26: =IF((H25+F26)>D26,Steuerung!$G$9*Steuerung!$G$11,H25) -> 0 | H26: 0
B27: =IF(Steuerung!$H$13=1,DATE(Steuerung!$D$11+22,Steuerung!$C$11,Steuerung!$B$11),IF(Steuerung!$H$13=2,DATE(Steuerung!$D$11,Steuerung!$C$11+64,Steuerung!$B$11),DATE(Steuerung!$D$11,Steuerung!$C$11+22,Steuerung!$B$11))) -> 2028-07-12 | C27: =IF(Steuerung!$H$13=1,360,IF(Steuerung!$H$13=2,90,30)) -> 360 | D27: =(H26*Steuerung!$G$11)+F27 -> 0 | E27: 0 | F27: =IF(H26>0,(H26*Steuerung!$G$10*C27)/360,0) -> 0 | G27: =IF((H26+F27)>D27,Steuerung!$G$9*Steuerung!$G$11,H26) -> 0 | H27: 0
B28: =IF(Steuerung!$H$13=1,DATE(Steuerung!$D$11+23,Steuerung!$C$11,Steuerung!$B$11),IF(Steuerung!$H$13=2,DATE(Steuerung!$D$11,Steuerung!$C$11+67,Steuerung!$B$11),DATE(Steuerung!$D$11,Steuerung!$C$11+23,Steuerung!$B$11))) -> 2029-07-12 | C28: =IF(Steuerung!$H$13=1,360,IF(Steuerung!$H$13=2,90,30)) -> 360 | D28: =(H27*Steuerung!$G$11)+F28 -> 0 | E28: 0 | F28: =IF(H27>0,(H27*Steuerung!$G$10*C28)/360,0) -> 0 | G28: =IF((H27+F28)>D28,Steuerung!$G$9*Steuerung!$G$11,H27) -> 0 | H28: 0
B29: =IF(Steuerung!$H$13=1,DATE(Steuerung!$D$11+24,Steuerung!$C$11,Steuerung!$B$11),IF(Steuerung!$H$13=2,DATE(Steuerung!$D$11,Steuerung!$C$11+70,Steuerung!$B$11),DATE(Steuerung!$D$11,Steuerung!$C$11+24,Steuerung!$B$11))) -> 2030-07-12 | C29: =IF(Steuerung!$H$13=1,360,IF(Steuerung!$H$13=2,90,30)) -> 360 | D29: =(H28*Steuerung!$G$11)+F29 -> 0 | E29: 0 | F29: =IF(H28>0,(H28*Steuerung!$G$10*C29)/360,0) -> 0 | G29: =IF((H28+F29)>D29,Steuerung!$G$9*Steuerung!$G$11,H28) -> 0 | H29: 0
B30: =IF(Steuerung!$H$13=1,DATE(Steuerung!$D$11+25,Steuerung!$C$11,Steuerung!$B$11),IF(Steuerung!$H$13=2,DATE(Steuerung!$D$11,Steuerung!$C$11+73,Steuerung!$B$11),DATE(Steuerung!$D$11,Steuerung!$C$11+25,Steuerung!$B$11))) -> 2031-07-12 | C30: =IF(Steuerung!$H$13=1,360,IF(Steuerung!$H$13=2,90,30)) -> 360 | D30: =(H29*Steuerung!$G$11)+F30 -> 0 | E30: 0 | F30: =IF(H29>0,(H29*Steuerung!$G$10*C30)/360,0) -> 0 | G30: =IF((H29+F30)>D30,Steuerung!$G$9*Steuerung!$G$11,H29) -> 0 | H30: 0
B31: =IF(Steuerung!$H$13=1,DATE(Steuerung!$D$11+26,Steuerung!$C$11,Steuerung!$B$11),IF(Steuerung!$H$13=2,DATE(Steuerung!$D$11,Steuerung!$C$11+76,Steuerung!$B$11),DATE(Steuerung!$D$11,Steuerung!$C$11+26,Steuerung!$B$11))) -> 2032-07-12 | C31: =IF(Steuerung!$H$13=1,360,IF(Steuerung!$H$13=2,90,30)) -> 360 | D31: =(H30*Steuerung!$G$11)+F31 -> 0 | E31: 0 | F31: =IF(H30>0,(H30*Steuerung!$G$10*C31)/360,0) -> 0 | G31: =IF((H30+F31)>D31,Steuerung!$G$9*Steuerung!$G$11,H30) -> 0 | H31: 0
B32: =IF(Steuerung!$H$13=1,DATE(Steuerung!$D$11+27,Steuerung!$C$11,Steuerung!$B$11),IF(Steuerung!$H$13=2,DATE(Steuerung!$D$11,Steuerung!$C$11+79,Steuerung!$B$11),DATE(Steuerung!$D$11,Steuerung!$C$11+27,Steuerung!$B$11))) -> 2033-07-12 | C32: =IF(Steuerung!$H$13=1,360,IF(Steuerung!$H$13=2,90,30)) -> 360 | D32: =(H31*Steuerung!$G$11)+F32 -> 0 | E32: 0 | F32: =IF(H31>0,(H31*Steuerung!$G$10*C32)/360,0) -> 0 | G32: =IF((H31+F32)>D32,Steuerung!$G$9*Steuerung!$G$11,H31) -> 0 | H32: 0
B33: =IF(Steuerung!$H$13=1,DATE(Steuerung!$D$11+28,Steuerung!$C$11,Steuerung!$B$11),IF(Steuerung!$H$13=2,DATE(Steuerung!$D$11,Steuerung!$C$11+82,Steuerung!$B$11),DATE(Steuerung!$D$11,Steuerung!$C$11+28,Steuerung!$B$11))) -> 2034-07-12 | C33: =IF(Steuerung!$H$13=1,360,IF(Steuerung!$H$13=2,90,30)) -> 360 | D33: =(H32*Steuerung!$G$11)+F33 -> 0 | E33: 0 | F33: =IF(H32>0,(H32*Steuerung!$G$10*C33)/360,0) -> 0 | G33: =IF((H32+F33)>D33,Steuerung!$G$9*Steuerung!$G$11,H32) -> 0 | H33: 0
B34: =IF(Steuerung!$H$13=1,DATE(Steuerung!$D$11+29,Steuerung!$C$11,Steuerung!$B$11),IF(Steuerung!$H$13=2,DATE(Steuerung!$D$11,Steuerung!$C$11+85,Steuerung!$B$11),DATE(Steuerung!$D$11,Steuerung!$C$11+29,Steuerung!$B$11))) -> 2035-07-12 | C34: =IF(Steuerung!$H$13=1,360,IF(Steuerung!$H$13=2,90,30)) -> 360 | D34: =(H33*Steuerung!$G$11)+F34 -> 0 | E34: 0 | F34: =IF(H33>0,(H33*Steuerung!$G$10*C34)/360,0) -> 0 | G34: =IF((H33+F34)>D34,Steuerung!$G$9*Steuerung!$G$11,H33) -> 0 | H34: 0
B35: =IF(Steuerung!$H$13=1,DATE(Steuerung!$D$11+30,Steuerung!$C$11,Steuerung!$B$11),IF(Steuerung!$H$13=2,DATE(Steuerung!$D$11,Steuerung!$C$11+88,Steuerung!$B$11),DATE(Steuerung!$D$11,Steuerung!$C$11+30,Steuerung!$B$11))) -> 2036-07-12 | C35: =IF(Steuerung!$H$13=1,360,IF(Steuerung!$H$13=2,90,30)) -> 360 | D35: =(H34*Steuerung!$G$11)+F35 -> 0 | E35: 0 | F35: =IF(H34>0,(H34*Steuerung!$G$10*C35)/360,0) -> 0 | G35: =IF((H34+F35)>D35,Steuerung!$G$9*Steuerung!$G$11,H34) -> 0 | H35: 0
B36: =IF(Steuerung!$H$13=1,DATE(Steuerung!$D$11+31,Steuerung!$C$11,Steuerung!$B$11),IF(Steuerung!$H$13=2,DATE(Steuerung!$D$11,Steuerung!$C$11+91,Steuerung!$B$11),DATE(Steuerung!$D$11,Steuerung!$C$11+31,Steuerung!$B$11))) -> 2037-07-12 | C36: =IF(Steuerung!$H$13=1,360,IF(Steuerung!$H$13=2,90,30)) -> 360 | D36: =(H35*Steuerung!$G$11)+F36 -> 0 | E36: 0 | F36: =IF(H35>0,(H35*Steuerung!$G$10*C36)/360,0) -> 0 | G36: =IF((H35+F36)>D36,Steuerung!$G$9*Steuerung!$G$11,H35) -> 0 | H36: 0
B37: =IF(Steuerung!$H$13=1,DATE(Steuerung!$D$11+32,Steuerung!$C$11,Steuerung!$B$11),IF(Steuerung!$H$13=2,DATE(Steuerung!$D$11,Steuerung!$C$11+94,Steuerung!$B$11),DATE(Steuerung!$D$11,Steuerung!$C$11+32,Steuerung!$B$11))) -> 2038-07-12 | C37: =IF(Steuerung!$H$13=1,360,IF(Steuerung!$H$13=2,90,30)) -> 360 | D37: =(H36*Steuerung!$G$11)+F37 -> 0 | E37: 0 | F37: =IF(H36>0,(H36*Steuerung!$G$10*C37)/360,0) -> 0 | G37: =IF((H36+F37)>D37,Steuerung!$G$9*Steuerung!$G$11,H36) -> 0 | H37: 0
B38: =IF(Steuerung!$H$13=1,DATE(Steuerung!$D$11+33,Steuerung!$C$11,Steuerung!$B$11),IF(Steuerung!$H$13=2,DATE(Steuerung!$D$11,Steuerung!$C$11+97,Steuerung!$B$11),DATE(Steuerung!$D$11,Steuerung!$C$11+33,Steuerung!$B$11))) -> 2039-07-12 | C38: =IF(Steuerung!$H$13=1,360,IF(Steuerung!$H$13=2,90,30)) -> 360 | D38: =(H37*Steuerung!$G$11)+F38 -> 0 | E38: 0 | F38: =IF(H37>0,(H37*Steuerung!$G$10*C38)/360,0) -> 0 | G38: =IF((H37+F38)>D38,Steuerung!$G$9*Steuerung!$G$11,H37) -> 0 | H38: 0
B39: =IF(Steuerung!$H$13=1,DATE(Steuerung!$D$11+34,Steuerung!$C$11,Steuerung!$B$11),IF(Steuerung!$H$13=2,DATE(Steuerung!$D$11,Steuerung!$C$11+100,Steuerung!$B$11),DATE(Steuerung!$D$11,Steuerung!$C$11+34,Steuerung!$B$11))) -> 2040-07-12 | C39: =IF(Steuerung!$H$13=1,360,IF(Steuerung!$H$13=2,90,30)) -> 360 | D39: =(H38*Steuerung!$G$11)+F39 -> 0 | E39: 0 | F39: =IF(H38>0,(H38*Steuerung!$G$10*C39)/360,0) -> 0 | G39: =IF((H38+F39)>D39,Steuerung!$G$9*Steuerung!$G$11,H38) -> 0 | H39: 0
B40: =IF(Steuerung!$H$13=1,DATE(Steuerung!$D$11+35,Steuerung!$C$11,Steuerung!$B$11),IF(Steuerung!$H$13=2,DATE(Steuerung!$D$11,Steuerung!$C$11+103,Steuerung!$B$11),DATE(Steuerung!$D$11,Steuerung!$C$11+35,Steuerung!$B$11))) -> 2041-07-12 | C40: =IF(Steuerung!$H$13=1,360,IF(Steuerung!$H$13=2,90,30)) -> 360 | D40: =(H39*Steuerung!$G$11)+F40 -> 0 | E40: 0 | F40: =IF(H39>0,(H39*Steuerung!$G$10*C40)/360,0) -> 0 | G40: =IF((H39+F40)>D40,Steuerung!$G$9*Steuerung!$G$11,H39) -> 0 | H40: 0
B41: =IF(Steuerung!$H$13=1,DATE(Steuerung!$D$11+36,Steuerung!$C$11,Steuerung!$B$11),IF(Steuerung!$H$13=2,DATE(Steuerung!$D$11,Steuerung!$C$11+106,Steuerung!$B$11),DATE(Steuerung!$D$11,Steuerung!$C$11+36,Steuerung!$B$11))) -> 2042-07-12 | C41: =IF(Steuerung!$H$13=1,360,IF(Steuerung!$H$13=2,90,30)) -> 360 | D41: =(H40*Steuerung!$G$11)+F41 -> 0 | E41: 0 | F41: =IF(H40>0,(H40*Steuerung!$G$10*C41)/360,0) -> 0 | G41: =IF((H40+F41)>D41,Steuerung!$G$9*Steuerung!$G$11,H40) -> 0 | H41: 0
B42: =IF(Steuerung!$H$13=1,DATE(Steuerung!$D$11+37,Steuerung!$C$11,Steuerung!$B$11),IF(Steuerung!$H$13=2,DATE(Steuerung!$D$11,Steuerung!$C$11+109,Steuerung!$B$11),DATE(Steuerung!$D$11,Steuerung!$C$11+37,Steuerung!$B$11))) -> 2043-07-12 | C42: =IF(Steuerung!$H$13=1,360,IF(Steuerung!$H$13=2,90,30)) -> 360 | D42: =(H41*Steuerung!$G$11)+F42 -> 0 | E42: 0 | F42: =IF(H41>0,(H41*Steuerung!$G$10*C42)/360,0) -> 0 | G42: =IF((H41+F42)>D42,Steuerung!$G$9*Steuerung!$G$11,H41) -> 0 | H42: 0
B43: =IF(Steuerung!$H$13=1,DATE(Steuerung!$D$11+38,Steuerung!$C$11,Steuerung!$B$11),IF(Steuerung!$H$13=2,DATE(Steuerung!$D$11,Steuerung!$C$11+112,Steuerung!$B$11),DATE(Steuerung!$D$11,Steuerung!$C$11+38,Steuerung!$B$11))) -> 2044-07-12 | C43: =IF(Steuerung!$H$13=1,360,IF(Steuerung!$H$13=2,90,30)) -> 360 | D43: =(H42*Steuerung!$G$11)+F43 -> 0 | E43: 0 | F43: =IF(H42>0,(H42*Steuerung!$G$10*C43)/360,0) -> 0 | G43: =IF((H42+F43)>D43,Steuerung!$G$9*Steuerung!$G$11,H42) -> 0 | H43: 0
B44: =IF(Steuerung!$H$13=1,DATE(Steuerung!$D$11+39,Steuerung!$C$11,Steuerung!$B$11),IF(Steuerung!$H$13=2,DATE(Steuerung!$D$11,Steuerung!$C$11+115,Steuerung!$B$11),DATE(Steuerung!$D$11,Steuerung!$C$11+39,Steuerung!$B$11))) -> 2045-07-12 | C44: =IF(Steuerung!$H$13=1,360,IF(Steuerung!$H$13=2,90,30)) -> 360 | D44: =(H43*Steuerung!$G$11)+F44 -> 0 | E44: 0 | F44: =IF(H43>0,(H43*Steuerung!$G$10*C44)/360,0) -> 0 | G44: =IF((H43+F44)>D44,Steuerung!$G$9*Steuerung!$G$11,H43) -> 0 | H44: 0
B45: =IF(Steuerung!$H$13=1,DATE(Steuerung!$D$11+40,Steuerung!$C$11,Steuerung!$B$11),IF(Steuerung!$H$13=2,DATE(Steuerung!$D$11,Steuerung!$C$11+118,Steuerung!$B$11),DATE(Steuerung!$D$11,Steuerung!$C$11+40,Steuerung!$B$11))) -> 2046-07-12 | C45: =IF(Steuerung!$H$13=1,360,IF(Steuerung!$H$13=2,90,30)) -> 360 | D45: =(H44*Steuerung!$G$11)+F45 -> 0 | E45: 0 | F45: =IF(H44>0,(H44*Steuerung!$G$10*C45)/360,0) -> 0 | G45: =IF((H44+F45)>D45,Steuerung!$G$9*Steuerung!$G$11,H44) -> 0 | H45: 0
B46: =IF(Steuerung!$H$13=1,DATE(Steuerung!$D$11+41,Steuerung!$C$11,Steuerung!$B$11),IF(Steuerung!$H$13=2,DATE(Steuerung!$D$11,Steuerung!$C$11+121,Steuerung!$B$11),DATE(Steuerung!$D$11,Steuerung!$C$11+41,Steuerung!$B$11))) -> 2047-07-12 | C46: =IF(Steuerung!$H$13=1,360,IF(Steuerung!$H$13=2,90,30)) -> 360 | D46: =(H45*Steuerung!$G$11)+F46 -> 0 | E46: 0 | F46: =IF(H45>0,(H45*Steuerung!$G$10*C46)/360,0) -> 0 | G46: =IF((H45+F46)>D46,Steuerung!$G$9*Steuerung!$G$11,H45) -> 0 | H46: 0
B47: =IF(Steuerung!$H$13=1,DATE(Steuerung!$D$11+42,Steuerung!$C$11,Steuerung!$B$11),IF(Steuerung!$H$13=2,DATE(Steuerung!$D$11,Steuerung!$C$11+124,Steuerung!$B$11),DATE(Steuerung!$D$11,Steuerung!$C$11+42,Steuerung!$B$11))) -> 2048-07-12 | C47: =IF(Steuerung!$H$13=1,360,IF(Steuerung!$H$13=2,90,30)) -> 360 | D47: =(H46*Steuerung!$G$11)+F47 -> 0 | E47: 0 | F47: =IF(H46>0,(H46*Steuerung!$G$10*C47)/360,0) -> 0 | G47: =IF((H46+F47)>D47,Steuerung!$G$9*Steuerung!$G$11,H46) -> 0 | H47: 0
B48: =IF(Steuerung!$H$13=1,DATE(Steuerung!$D$11+43,Steuerung!$C$11,Steuerung!$B$11),IF(Steuerung!$H$13=2,DATE(Steuerung!$D$11,Steuerung!$C$11+127,Steuerung!$B$11),DATE(Steuerung!$D$11,Steuerung!$C$11+43,Steuerung!$B$11))) -> 2049-07-12 | C48: =IF(Steuerung!$H$13=1,360,IF(Steuerung!$H$13=2,90,30)) -> 360 | D48: =(H47*Steuerung!$G$11)+F48 -> 0 | E48: 0 | F48: =IF(H47>0,(H47*Steuerung!$G$10*C48)/360,0) -> 0 | G48: =IF((H47+F48)>D48,Steuerung!$G$9*Steuerung!$G$11,H47) -> 0 | H48: 0
B49: =IF(Steuerung!$H$13=1,DATE(Steuerung!$D$11+44,Steuerung!$C$11,Steuerung!$B$11),IF(Steuerung!$H$13=2,DATE(Steuerung!$D$11,Steuerung!$C$11+130,Steuerung!$B$11),DATE(Steuerung!$D$11,Steuerung!$C$11+44,Steuerung!$B$11))) -> 2050-07-12 | C49: =IF(Steuerung!$H$13=1,360,IF(Steuerung!$H$13=2,90,30)) -> 360 | D49: =(H48*Steuerung!$G$11)+F49 -> 0 | E49: 0 | F49: =IF(H48>0,(H48*Steuerung!$G$10*C49)/360,0) -> 0 | G49: =IF((H48+F49)>D49,Steuerung!$G$9*Steuerung!$G$11,H48) -> 0 | H49: 0
B50: =IF(Steuerung!$H$13=1,DATE(Steuerung!$D$11+45,Steuerung!$C$11,Steuerung!$B$11),IF(Steuerung!$H$13=2,DATE(Steuerung!$D$11,Steuerung!$C$11+133,Steuerung!$B$11),DATE(Steuerung!$D$11,Steuerung!$C$11+45,Steuerung!$B$11))) -> 2051-07-12 | C50: =IF(Steuerung!$H$13=1,360,IF(Steuerung!$H$13=2,90,30)) -> 360 | D50: =(H49*Steuerung!$G$11)+F50 -> 0 | E50: 0 | F50: =IF(H49>0,(H49*Steuerung!$G$10*C50)/360,0) -> 0 | G50: =IF((H49+F50)>D50,Steuerung!$G$9*Steuerung!$G$11,H49) -> 0 | H50: 0
B51: =IF(Steuerung!$H$13=1,DATE(Steuerung!$D$11+46,Steuerung!$C$11,Steuerung!$B$11),IF(Steuerung!$H$13=2,DATE(Steuerung!$D$11,Steuerung!$C$11+136,Steuerung!$B$11),DATE(Steuerung!$D$11,Steuerung!$C$11+46,Steuerung!$B$11))) -> 2052-07-12 | C51: =IF(Steuerung!$H$13=1,360,IF(Steuerung!$H$13=2,90,30)) -> 360 | D51: =(H50*Steuerung!$G$11)+F51 -> 0 | E51: 0 | F51: =IF(H50>0,(H50*Steuerung!$G$10*C51)/360,0) -> 0 | G51: =IF((H50+F51)>D51,Steuerung!$G$9*Steuerung!$G$11,H50) -> 0 | H51: 0
B52: =IF(Steuerung!$H$13=1,DATE(Steuerung!$D$11+47,Steuerung!$C$11,Steuerung!$B$11),IF(Steuerung!$H$13=2,DATE(Steuerung!$D$11,Steuerung!$C$11+139,Steuerung!$B$11),DATE(Steuerung!$D$11,Steuerung!$C$11+47,Steuerung!$B$11))) -> 2053-07-12 | C52: =IF(Steuerung!$H$13=1,360,IF(Steuerung!$H$13=2,90,30)) -> 360 | D52: =(H51*Steuerung!$G$11)+F52 -> 0 | E52: 0 | F52: =IF(H51>0,(H51*Steuerung!$G$10*C52)/360,0) -> 0 | G52: =IF((H51+F52)>D52,Steuerung!$G$9*Steuerung!$G$11,H51) -> 0 | H52: 0
B53: =IF(Steuerung!$H$13=1,DATE(Steuerung!$D$11+48,Steuerung!$C$11,Steuerung!$B$11),IF(Steuerung!$H$13=2,DATE(Steuerung!$D$11,Steuerung!$C$11+142,Steuerung!$B$11),DATE(Steuerung!$D$11,Steuerung!$C$11+48,Steuerung!$B$11))) -> 2054-07-12 | C53: =IF(Steuerung!$H$13=1,360,IF(Steuerung!$H$13=2,90,30)) -> 360 | D53: =(H52*Steuerung!$G$11)+F53 -> 0 | E53: 0 | F53: =IF(H52>0,(H52*Steuerung!$G$10*C53)/360,0) -> 0 | G53: =IF((H52+F53)>D53,Steuerung!$G$9*Steuerung!$G$11,H52) -> 0 | H53: 0
B54: =IF(Steuerung!$H$13=1,DATE(Steuerung!$D$11+49,Steuerung!$C$11,Steuerung!$B$11),IF(Steuerung!$H$13=2,DATE(Steuerung!$D$11,Steuerung!$C$11+145,Steuerung!$B$11),DATE(Steuerung!$D$11,Steuerung!$C$11+49,Steuerung!$B$11))) -> 2055-07-12 | C54: =IF(Steuerung!$H$13=1,360,IF(Steuerung!$H$13=2,90,30)) -> 360 | D54: =(H53*Steuerung!$G$11)+F54 -> 0 | E54: 0 | F54: =IF(H53>0,(H53*Steuerung!$G$10*C54)/360,0) -> 0 | G54: =IF((H53+F54)>D54,Steuerung!$G$9*Steuerung!$G$11,H53) -> 0 | H54: 0
B55: =IF(Steuerung!$H$13=1,DATE(Steuerung!$D$11+50,Steuerung!$C$11,Steuerung!$B$11),IF(Steuerung!$H$13=2,DATE(Steuerung!$D$11,Steuerung!$C$11+148,Steuerung!$B$11),DATE(Steuerung!$D$11,Steuerung!$C$11+50,Steuerung!$B$11))) -> 2056-07-12 | C55: =IF(Steuerung!$H$13=1,360,IF(Steuerung!$H$13=2,90,30)) -> 360 | D55: =(H54*Steuerung!$G$11)+F55 -> 0 | E55: 0 | F55: =IF(H54>0,(H54*Steuerung!$G$10*C55)/360,0) -> 0 | G55: =IF((H54+F55)>D55,Steuerung!$G$9*Steuerung!$G$11,H54) -> 0 | H55: 0
B56: =IF(Steuerung!$H$13=1,DATE(Steuerung!$D$11+51,Steuerung!$C$11,Steuerung!$B$11),IF(Steuerung!$H$13=2,DATE(Steuerung!$D$11,Steuerung!$C$11+151,Steuerung!$B$11),DATE(Steuerung!$D$11,Steuerung!$C$11+51,Steuerung!$B$11))) -> 2057-07-12 | C56: =IF(Steuerung!$H$13=1,360,IF(Steuerung!$H$13=2,90,30)) -> 360 | D56: =(H55*Steuerung!$G$11)+F56 -> 0 | E56: 0 | F56: =IF(H55>0,(H55*Steuerung!$G$10*C56)/360,0) -> 0 | G56: =IF((H55+F56)>D56,Steuerung!$G$9*Steuerung!$G$11,H55) -> 0 | H56: 0
B57: =IF(Steuerung!$H$13=1,DATE(Steuerung!$D$11+52,Steuerung!$C$11,Steuerung!$B$11),IF(Steuerung!$H$13=2,DATE(Steuerung!$D$11,Steuerung!$C$11+154,Steuerung!$B$11),DATE(Steuerung!$D$11,Steuerung!$C$11+52,Steuerung!$B$11))) -> 2058-07-12 | C57: =IF(Steuerung!$H$13=1,360,IF(Steuerung!$H$13=2,90,30)) -> 360 | D57: =(H56*Steuerung!$G$11)+F57 -> 0 | E57: 0 | F57: =IF(H56>0,(H56*Steuerung!$G$10*C57)/360,0) -> 0 | G57: =IF((H56+F57)>D57,Steuerung!$G$9*Steuerung!$G$11,H56) -> 0 | H57: 0
B58: =IF(Steuerung!$H$13=1,DATE(Steuerung!$D$11+53,Steuerung!$C$11,Steuerung!$B$11),IF(Steuerung!$H$13=2,DATE(Steuerung!$D$11,Steuerung!$C$11+157,Steuerung!$B$11),DATE(Steuerung!$D$11,Steuerung!$C$11+53,Steuerung!$B$11))) -> 2059-07-12 | C58: =IF(Steuerung!$H$13=1,360,IF(Steuerung!$H$13=2,90,30)) -> 360 | D58: =(H57*Steuerung!$G$11)+F58 -> 0 | E58: 0 | F58: =IF(H57>0,(H57*Steuerung!$G$10*C58)/360,0) -> 0 | G58: =IF((H57+F58)>D58,Steuerung!$G$9*Steuerung!$G$11,H57) -> 0 | H58: 0
B59: =IF(Steuerung!$H$13=1,DATE(Steuerung!$D$11+54,Steuerung!$C$11,Steuerung!$B$11),IF(Steuerung!$H$13=2,DATE(Steuerung!$D$11,Steuerung!$C$11+160,Steuerung!$B$11),DATE(Steuerung!$D$11,Steuerung!$C$11+54,Steuerung!$B$11))) -> 2060-07-12 | C59: =IF(Steuerung!$H$13=1,360,IF(Steuerung!$H$13=2,90,30)) -> 360 | D59: =(H58*Steuerung!$G$11)+F59 -> 0 | E59: 0 | F59: =IF(H58>0,(H58*Steuerung!$G$10*C59)/360,0) -> 0 | G59: =IF((H58+F59)>D59,Steuerung!$G$9*Steuerung!$G$11,H58) -> 0 | H59: 0
B60: =IF(Steuerung!$H$13=1,DATE(Steuerung!$D$11+55,Steuerung!$C$11,Steuerung!$B$11),IF(Steuerung!$H$13=2,DATE(Steuerung!$D$11,Steuerung!$C$11+163,Steuerung!$B$11),DATE(Steuerung!$D$11,Steuerung!$C$11+55,Steuerung!$B$11))) -> 2061-07-12 | C60: =IF(Steuerung!$H$13=1,360,IF(Steuerung!$H$13=2,90,30)) -> 360 | D60: =(H59*Steuerung!$G$11)+F60 -> 0 | E60: 0 | F60: =IF(H59>0,(H59*Steuerung!$G$10*C60)/360,0) -> 0 | G60: =IF((H59+F60)>D60,Steuerung!$G$9*Steuerung!$G$11,H59) -> 0 | H60: 0
B61: =IF(Steuerung!$H$13=1,DATE(Steuerung!$D$11+56,Steuerung!$C$11,Steuerung!$B$11),IF(Steuerung!$H$13=2,DATE(Steuerung!$D$11,Steuerung!$C$11+166,Steuerung!$B$11),DATE(Steuerung!$D$11,Steuerung!$C$11+56,Steuerung!$B$11))) -> 2062-07-12 | C61: =IF(Steuerung!$H$13=1,360,IF(Steuerung!$H$13=2,90,30)) -> 360 | D61: =(H60*Steuerung!$G$11)+F61 -> 0 | E61: 0 | F61: =IF(H60>0,(H60*Steuerung!$G$10*C61)/360,0) -> 0 | G61: =IF((H60+F61)>D61,Steuerung!$G$9*Steuerung!$G$11,H60) -> 0 | H61: 0
B62: =IF(Steuerung!$H$13=1,DATE(Steuerung!$D$11+57,Steuerung!$C$11,Steuerung!$B$11),IF(Steuerung!$H$13=2,DATE(Steuerung!$D$11,Steuerung!$C$11+169,Steuerung!$B$11),DATE(Steuerung!$D$11,Steuerung!$C$11+57,Steuerung!$B$11))) -> 2063-07-12 | C62: =IF(Steuerung!$H$13=1,360,IF(Steuerung!$H$13=2,90,30)) -> 360 | D62: =(H61*Steuerung!$G$11)+F62 -> 0 | E62: 0 | F62: =IF(H61>0,(H61*Steuerung!$G$10*C62)/360,0) -> 0 | G62: =IF((H61+F62)>D62,Steuerung!$G$9*Steuerung!$G$11,H61) -> 0 | H62: 0
B63: =IF(Steuerung!$H$13=1,DATE(Steuerung!$D$11+58,Steuerung!$C$11,Steuerung!$B$11),IF(Steuerung!$H$13=2,DATE(Steuerung!$D$11,Steuerung!$C$11+172,Steuerung!$B$11),DATE(Steuerung!$D$11,Steuerung!$C$11+58,Steuerung!$B$11))) -> 2064-07-12 | C63: =IF(Steuerung!$H$13=1,360,IF(Steuerung!$H$13=2,90,30)) -> 360 | D63: =(H62*Steuerung!$G$11)+F63 -> 0 | E63: 0 | F63: =IF(H62>0,(H62*Steuerung!$G$10*C63)/360,0) -> 0 | G63: =IF((H62+F63)>D63,Steuerung!$G$9*Steuerung!$G$11,H62) -> 0 | H63: 0
B64: =IF(Steuerung!$H$13=1,DATE(Steuerung!$D$11+59,Steuerung!$C$11,Steuerung!$B$11),IF(Steuerung!$H$13=2,DATE(Steuerung!$D$11,Steuerung!$C$11+175,Steuerung!$B$11),DATE(Steuerung!$D$11,Steuerung!$C$11+59,Steuerung!$B$11))) -> 2065-07-12 | C64: =IF(Steuerung!$H$13=1,360,IF(Steuerung!$H$13=2,90,30)) -> 360 | D64: =(H63*Steuerung!$G$11)+F64 -> 0 | E64: 0 | F64: =IF(H63>0,(H63*Steuerung!$G$10*C64)/360,0) -> 0 | G64: =IF((H63+F64)>D64,Steuerung!$G$9*Steuerung!$G$11,H63) -> 0 | H64: 0
B65: =IF(Steuerung!$H$13=1,DATE(Steuerung!$D$11+60,Steuerung!$C$11,Steuerung!$B$11),IF(Steuerung!$H$13=2,DATE(Steuerung!$D$11,Steuerung!$C$11+178,Steuerung!$B$11),DATE(Steuerung!$D$11,Steuerung!$C$11+60,Steuerung!$B$11))) -> 2066-07-12 | C65: =IF(Steuerung!$H$13=1,360,IF(Steuerung!$H$13=2,90,30)) -> 360 | D65: =(H64*Steuerung!$G$11)+F65 -> 0 | E65: 0 | F65: =IF(H64>0,(H64*Steuerung!$G$10*C65)/360,0) -> 0 | G65: =IF((H64+F65)>D65,Steuerung!$G$9*Steuerung!$G$11,H64) -> 0 | H65: 0
B66: =IF(Steuerung!$H$13=1,DATE(Steuerung!$D$11+61,Steuerung!$C$11,Steuerung!$B$11),IF(Steuerung!$H$13=2,DATE(Steuerung!$D$11,Steuerung!$C$11+181,Steuerung!$B$11),DATE(Steuerung!$D$11,Steuerung!$C$11+61,Steuerung!$B$11))) -> 2067-07-12 | C66: =IF(Steuerung!$H$13=1,360,IF(Steuerung!$H$13=2,90,30)) -> 360 | D66: =(H65*Steuerung!$G$11)+F66 -> 0 | E66: 0 | F66: =IF(H65>0,(H65*Steuerung!$G$10*C66)/360,0) -> 0 | G66: =IF((H65+F66)>D66,Steuerung!$G$9*Steuerung!$G$11,H65) -> 0 | H66: 0
B67: =IF(Steuerung!$H$13=1,DATE(Steuerung!$D$11+62,Steuerung!$C$11,Steuerung!$B$11),IF(Steuerung!$H$13=2,DATE(Steuerung!$D$11,Steuerung!$C$11+184,Steuerung!$B$11),DATE(Steuerung!$D$11,Steuerung!$C$11+62,Steuerung!$B$11))) -> 2068-07-12 | C67: =IF(Steuerung!$H$13=1,360,IF(Steuerung!$H$13=2,90,30)) -> 360 | D67: =(H66*Steuerung!$G$11)+F67 -> 0 | E67: 0 | F67: =IF(H66>0,(H66*Steuerung!$G$10*C67)/360,0) -> 0 | G67: =IF((H66+F67)>D67,Steuerung!$G$9*Steuerung!$G$11,H66) -> 0 | H67: 0
B68: =IF(Steuerung!$H$13=1,DATE(Steuerung!$D$11+63,Steuerung!$C$11,Steuerung!$B$11),IF(Steuerung!$H$13=2,DATE(Steuerung!$D$11,Steuerung!$C$11+187,Steuerung!$B$11),DATE(Steuerung!$D$11,Steuerung!$C$11+63,Steuerung!$B$11))) -> 2069-07-12 | C68: =IF(Steuerung!$H$13=1,360,IF(Steuerung!$H$13=2,90,30)) -> 360 | D68: =(H67*Steuerung!$G$11)+F68 -> 0 | E68: 0 | F68: =IF(H67>0,(H67*Steuerung!$G$10*C68)/360,0) -> 0 | G68: =IF((H67+F68)>D68,Steuerung!$G$9*Steuerung!$G$11,H67) -> 0 | H68: 0
B69: =IF(Steuerung!$H$13=1,DATE(Steuerung!$D$11+64,Steuerung!$C$11,Steuerung!$B$11),IF(Steuerung!$H$13=2,DATE(Steuerung!$D$11,Steuerung!$C$11+190,Steuerung!$B$11),DATE(Steuerung!$D$11,Steuerung!$C$11+64,Steuerung!$B$11))) -> 2070-07-12 | C69: =IF(Steuerung!$H$13=1,360,IF(Steuerung!$H$13=2,90,30)) -> 360 | D69: =(H68*Steuerung!$G$11)+F69 -> 0 | E69: 0 | F69: =IF(H68>0,(H68*Steuerung!$G$10*C69)/360,0) -> 0 | G69: =IF((H68+F69)>D69,Steuerung!$G$9*Steuerung!$G$11,H68) -> 0 | H69: 0
B70: =IF(Steuerung!$H$13=1,DATE(Steuerung!$D$11+65,Steuerung!$C$11,Steuerung!$B$11),IF(Steuerung!$H$13=2,DATE(Steuerung!$D$11,Steuerung!$C$11+193,Steuerung!$B$11),DATE(Steuerung!$D$11,Steuerung!$C$11+65,Steuerung!$B$11))) -> 2071-07-12 | C70: =IF(Steuerung!$H$13=1,360,IF(Steuerung!$H$13=2,90,30)) -> 360 | D70: =(H69*Steuerung!$G$11)+F70 -> 0 | E70: =F70+G70 -> 0 | F70: =IF(H69>0,(H69*Steuerung!$G$10*C70)/360,0) -> 0 | G70: =IF((H69+F70)>D70,Steuerung!$G$9*Steuerung!$G$11,H69) -> 0 | H70: 0
B71: =IF(Steuerung!$H$13=1,DATE(Steuerung!$D$11+66,Steuerung!$C$11,Steuerung!$B$11),IF(Steuerung!$H$13=2,DATE(Steuerung!$D$11,Steuerung!$C$11+196,Steuerung!$B$11),DATE(Steuerung!$D$11,Steuerung!$C$11+66,Steuerung!$B$11))) -> 2072-07-12 | C71: =IF(Steuerung!$H$13=1,360,IF(Steuerung!$H$13=2,90,30)) -> 360 | D71: =(H70*Steuerung!$G$11)+F71 -> 0 | E71: 0 | F71: =IF(H70>0,(H70*Steuerung!$G$10*C71)/360,0) -> 0 | G71: =IF((H70+F71)>D71,Steuerung!$G$9*Steuerung!$G$11,H70) -> 0 | H71: 0
B72: =IF(Steuerung!$H$13=1,DATE(Steuerung!$D$11+67,Steuerung!$C$11,Steuerung!$B$11),IF(Steuerung!$H$13=2,DATE(Steuerung!$D$11,Steuerung!$C$11+199,Steuerung!$B$11),DATE(Steuerung!$D$11,Steuerung!$C$11+67,Steuerung!$B$11))) -> 2073-07-12 | C72: =IF(Steuerung!$H$13=1,360,IF(Steuerung!$H$13=2,90,30)) -> 360 | D72: =(H71*Steuerung!$G$11)+F72 -> 0 | E72: 0 | F72: =IF(H71>0,(H71*Steuerung!$G$10*C72)/360,0) -> 0 | G72: =IF((H71+F72)>D72,Steuerung!$G$9*Steuerung!$G$11,H71) -> 0 | H72: 0
B73: =IF(Steuerung!$H$13=1,DATE(Steuerung!$D$11+68,Steuerung!$C$11,Steuerung!$B$11),IF(Steuerung!$H$13=2,DATE(Steuerung!$D$11,Steuerung!$C$11+202,Steuerung!$B$11),DATE(Steuerung!$D$11,Steuerung!$C$11+68,Steuerung!$B$11))) -> 2074-07-12 | C73: =IF(Steuerung!$H$13=1,360,IF(Steuerung!$H$13=2,90,30)) -> 360 | D73: =(H72*Steuerung!$G$11)+F73 -> 0 | E73: 0 | F73: =IF(H72>0,(H72*Steuerung!$G$10*C73)/360,0) -> 0 | G73: =IF((H72+F73)>D73,Steuerung!$G$9*Steuerung!$G$11,H72) -> 0 | H73: 0
B74: =IF(Steuerung!$H$13=1,DATE(Steuerung!$D$11+69,Steuerung!$C$11,Steuerung!$B$11),IF(Steuerung!$H$13=2,DATE(Steuerung!$D$11,Steuerung!$C$11+205,Steuerung!$B$11),DATE(Steuerung!$D$11,Steuerung!$C$11+69,Steuerung!$B$11))) -> 2075-07-12 | C74: =IF(Steuerung!$H$13=1,360,IF(Steuerung!$H$13=2,90,30)) -> 360 | D74: =(H73*Steuerung!$G$11)+F74 -> 0 | E74: 0 | F74: =IF(H73>0,(H73*Steuerung!$G$10*C74)/360,0) -> 0 | G74: =IF((H73+F74)>D74,Steuerung!$G$9*Steuerung!$G$11,H73) -> 0 | H74: 0
B75: =IF(Steuerung!$H$13=1,DATE(Steuerung!$D$11+70,Steuerung!$C$11,Steuerung!$B$11),IF(Steuerung!$H$13=2,DATE(Steuerung!$D$11,Steuerung!$C$11+208,Steuerung!$B$11),DATE(Steuerung!$D$11,Steuerung!$C$11+70,Steuerung!$B$11))) -> 2076-07-12 | C75: =IF(Steuerung!$H$13=1,360,IF(Steuerung!$H$13=2,90,30)) -> 360 | D75: =(H74*Steuerung!$G$11)+F75 -> 0 | E75: 0 | F75: =IF(H74>0,(H74*Steuerung!$G$10*C75)/360,0) -> 0 | G75: =IF((H74+F75)>D75,Steuerung!$G$9*Steuerung!$G$11,H74) -> 0 | H75: 0
B76: =IF(Steuerung!$H$13=1,DATE(Steuerung!$D$11+71,Steuerung!$C$11,Steuerung!$B$11),IF(Steuerung!$H$13=2,DATE(Steuerung!$D$11,Steuerung!$C$11+211,Steuerung!$B$11),DATE(Steuerung!$D$11,Steuerung!$C$11+71,Steuerung!$B$11))) -> 2077-07-12 | C76: =IF(Steuerung!$H$13=1,360,IF(Steuerung!$H$13=2,90,30)) -> 360 | D76: =(H75*Steuerung!$G$11)+F76 -> 0 | E76: 0 | F76: =IF(H75>0,(H75*Steuerung!$G$10*C76)/360,0) -> 0 | G76: =IF((H75+F76)>D76,Steuerung!$G$9*Steuerung!$G$11,H75) -> 0 | H76: 0
B77: =IF(Steuerung!$H$13=1,DATE(Steuerung!$D$11+72,Steuerung!$C$11,Steuerung!$B$11),IF(Steuerung!$H$13=2,DATE(Steuerung!$D$11,Steuerung!$C$11+214,Steuerung!$B$11),DATE(Steuerung!$D$11,Steuerung!$C$11+72,Steuerung!$B$11))) -> 2078-07-12 | C77: =IF(Steuerung!$H$13=1,360,IF(Steuerung!$H$13=2,90,30)) -> 360 | D77: =(H76*Steuerung!$G$11)+F77 -> 0 | E77: 0 | F77: =IF(H76>0,(H76*Steuerung!$G$10*C77)/360,0) -> 0 | G77: =IF((H76+F77)>D77,Steuerung!$G$9*Steuerung!$G$11,H76) -> 0 | H77: 0
B78: =IF(Steuerung!$H$13=1,DATE(Steuerung!$D$11+73,Steuerung!$C$11,Steuerung!$B$11),IF(Steuerung!$H$13=2,DATE(Steuerung!$D$11,Steuerung!$C$11+217,Steuerung!$B$11),DATE(Steuerung!$D$11,Steuerung!$C$11+73,Steuerung!$B$11))) -> 2079-07-12 | C78: =IF(Steuerung!$H$13=1,360,IF(Steuerung!$H$13=2,90,30)) -> 360 | D78: =(H77*Steuerung!$G$11)+F78 -> 0 | E78: 0 | F78: =IF(H77>0,(H77*Steuerung!$G$10*C78)/360,0) -> 0 | G78: =IF((H77+F78)>D78,Steuerung!$G$9*Steuerung!$G$11,H77) -> 0 | H78: 0
B79: =IF(Steuerung!$H$13=1,DATE(Steuerung!$D$11+74,Steuerung!$C$11,Steuerung!$B$11),IF(Steuerung!$H$13=2,DATE(Steuerung!$D$11,Steuerung!$C$11+220,Steuerung!$B$11),DATE(Steuerung!$D$11,Steuerung!$C$11+74,Steuerung!$B$11))) -> 2080-07-12 | C79: =IF(Steuerung!$H$13=1,360,IF(Steuerung!$H$13=2,90,30)) -> 360 | D79: =(H78*Steuerung!$G$11)+F79 -> 0 | E79: 0 | F79: =IF(H78>0,(H78*Steuerung!$G$10*C79)/360,0) -> 0 | G79: =IF((H78+F79)>D79,Steuerung!$G$9*Steuerung!$G$11,H78) -> 0 | H79: 0
B80: =IF(Steuerung!$H$13=1,DATE(Steuerung!$D$11+75,Steuerung!$C$11,Steuerung!$B$11),IF(Steuerung!$H$13=2,DATE(Steuerung!$D$11,Steuerung!$C$11+223,Steuerung!$B$11),DATE(Steuerung!$D$11,Steuerung!$C$11+75,Steuerung!$B$11))) -> 2081-07-12 | C80: =IF(Steuerung!$H$13=1,360,IF(Steuerung!$H$13=2,90,30)) -> 360 | D80: =(H79*Steuerung!$G$11)+F80 -> 0 | E80: 0 | F80: =IF(H79>0,(H79*Steuerung!$G$10*C80)/360,0) -> 0 | G80: =IF((H79+F80)>D80,Steuerung!$G$9*Steuerung!$G$11,H79) -> 0 | H80: 0
B81: =IF(Steuerung!$H$13=1,DATE(Steuerung!$D$11+76,Steuerung!$C$11,Steuerung!$B$11),IF(Steuerung!$H$13=2,DATE(Steuerung!$D$11,Steuerung!$C$11+226,Steuerung!$B$11),DATE(Steuerung!$D$11,Steuerung!$C$11+76,Steuerung!$B$11))) -> 2082-07-12 | C81: =IF(Steuerung!$H$13=1,360,IF(Steuerung!$H$13=2,90,30)) -> 360 | D81: =(H80*Steuerung!$G$11)+F81 -> 0 | E81: 0 | F81: =IF(H80>0,(H80*Steuerung!$G$10*C81)/360,0) -> 0 | G81: =IF((H80+F81)>D81,Steuerung!$G$9*Steuerung!$G$11,H80) -> 0 | H81: 0
B82: =IF(Steuerung!$H$13=1,DATE(Steuerung!$D$11+77,Steuerung!$C$11,Steuerung!$B$11),IF(Steuerung!$H$13=2,DATE(Steuerung!$D$11,Steuerung!$C$11+229,Steuerung!$B$11),DATE(Steuerung!$D$11,Steuerung!$C$11+77,Steuerung!$B$11))) -> 2083-07-12 | C82: =IF(Steuerung!$H$13=1,360,IF(Steuerung!$H$13=2,90,30)) -> 360 | D82: =(H81*Steuerung!$G$11)+F82 -> 0 | E82: 0 | F82: =IF(H81>0,(H81*Steuerung!$G$10*C82)/360,0) -> 0 | G82: =IF((H81+F82)>D82,Steuerung!$G$9*Steuerung!$G$11,H81) -> 0 | H82: 0
B83: =IF(Steuerung!$H$13=1,DATE(Steuerung!$D$11+78,Steuerung!$C$11,Steuerung!$B$11),IF(Steuerung!$H$13=2,DATE(Steuerung!$D$11,Steuerung!$C$11+232,Steuerung!$B$11),DATE(Steuerung!$D$11,Steuerung!$C$11+78,Steuerung!$B$11))) -> 2084-07-12 | C83: =IF(Steuerung!$H$13=1,360,IF(Steuerung!$H$13=2,90,30)) -> 360 | D83: =(H82*Steuerung!$G$11)+F83 -> 0 | E83: 0 | F83: =IF(H82>0,(H82*Steuerung!$G$10*C83)/360,0) -> 0 | G83: =IF((H82+F83)>D83,Steuerung!$G$9*Steuerung!$G$11,H82) -> 0 | H83: 0
B84: =IF(Steuerung!$H$13=1,DATE(Steuerung!$D$11+79,Steuerung!$C$11,Steuerung!$B$11),IF(Steuerung!$H$13=2,DATE(Steuerung!$D$11,Steuerung!$C$11+235,Steuerung!$B$11),DATE(Steuerung!$D$11,Steuerung!$C$11+79,Steuerung!$B$11))) -> 2085-07-12 | C84: =IF(Steuerung!$H$13=1,360,IF(Steuerung!$H$13=2,90,30)) -> 360 | D84: =(H83*Steuerung!$G$11)+F84 -> 0 | E84: 0 | F84: =IF(H83>0,(H83*Steuerung!$G$10*C84)/360,0) -> 0 | G84: =IF((H83+F84)>D84,Steuerung!$G$9*Steuerung!$G$11,H83) -> 0 | H84: 0
B85: =IF(Steuerung!$H$13=1,DATE(Steuerung!$D$11+80,Steuerung!$C$11,Steuerung!$B$11),IF(Steuerung!$H$13=2,DATE(Steuerung!$D$11,Steuerung!$C$11+238,Steuerung!$B$11),DATE(Steuerung!$D$11,Steuerung!$C$11+80,Steuerung!$B$11))) -> 2086-07-12 | C85: =IF(Steuerung!$H$13=1,360,IF(Steuerung!$H$13=2,90,30)) -> 360 | D85: =(H84*Steuerung!$G$11)+F85 -> 0 | E85: 0 | F85: =IF(H84>0,(H84*Steuerung!$G$10*C85)/360,0) -> 0 | G85: =IF((H84+F85)>D85,Steuerung!$G$9*Steuerung!$G$11,H84) -> 0 | H85: 0
B86: =IF(Steuerung!$H$13=1,DATE(Steuerung!$D$11+81,Steuerung!$C$11,Steuerung!$B$11),IF(Steuerung!$H$13=2,DATE(Steuerung!$D$11,Steuerung!$C$11+241,Steuerung!$B$11),DATE(Steuerung!$D$11,Steuerung!$C$11+81,Steuerung!$B$11))) -> 2087-07-12 | C86: =IF(Steuerung!$H$13=1,360,IF(Steuerung!$H$13=2,90,30)) -> 360 | D86: =(H85*Steuerung!$G$11)+F86 -> 0 | E86: 0 | F86: =IF(H85>0,(H85*Steuerung!$G$10*C86)/360,0) -> 0 | G86: =IF((H85+F86)>D86,Steuerung!$G$9*Steuerung!$G$11,H85) -> 0 | H86: 0
B87: =IF(Steuerung!$H$13=1,DATE(Steuerung!$D$11+82,Steuerung!$C$11,Steuerung!$B$11),IF(Steuerung!$H$13=2,DATE(Steuerung!$D$11,Steuerung!$C$11+244,Steuerung!$B$11),DATE(Steuerung!$D$11,Steuerung!$C$11+82,Steuerung!$B$11))) -> 2088-07-12 | C87: =IF(Steuerung!$H$13=1,360,IF(Steuerung!$H$13=2,90,30)) -> 360 | D87: =(H86*Steuerung!$G$11)+F87 -> 0 | E87: 0 | F87: =IF(H86>0,(H86*Steuerung!$G$10*C87)/360,0) -> 0 | G87: =IF((H86+F87)>D87,Steuerung!$G$9*Steuerung!$G$11,H86) -> 0 | H87: 0
B88: =IF(Steuerung!$H$13=1,DATE(Steuerung!$D$11+83,Steuerung!$C$11,Steuerung!$B$11),IF(Steuerung!$H$13=2,DATE(Steuerung!$D$11,Steuerung!$C$11+247,Steuerung!$B$11),DATE(Steuerung!$D$11,Steuerung!$C$11+83,Steuerung!$B$11))) -> 2089-07-12 | C88: =IF(Steuerung!$H$13=1,360,IF(Steuerung!$H$13=2,90,30)) -> 360 | D88: =(H87*Steuerung!$G$11)+F88 -> 0 | E88: 0 | F88: =IF(H87>0,(H87*Steuerung!$G$10*C88)/360,0) -> 0 | G88: =IF((H87+F88)>D88,Steuerung!$G$9*Steuerung!$G$11,H87) -> 0 | H88: 0
B89: =IF(Steuerung!$H$13=1,DATE(Steuerung!$D$11+84,Steuerung!$C$11,Steuerung!$B$11),IF(Steuerung!$H$13=2,DATE(Steuerung!$D$11,Steuerung!$C$11+250,Steuerung!$B$11),DATE(Steuerung!$D$11,Steuerung!$C$11+84,Steuerung!$B$11))) -> 2090-07-12 | C89: =IF(Steuerung!$H$13=1,360,IF(Steuerung!$H$13=2,90,30)) -> 360 | D89: =(H88*Steuerung!$G$11)+F89 -> 0 | E89: 0 | F89: =IF(H88>0,(H88*Steuerung!$G$10*C89)/360,0) -> 0 | G89: =IF((H88+F89)>D89,Steuerung!$G$9*Steuerung!$G$11,H88) -> 0 | H89: =IF((H88-G89)>0,(H88-G89),0) -> 0
B90: =IF(Steuerung!$H$13=1,DATE(Steuerung!$D$11+85,Steuerung!$C$11,Steuerung!$B$11),IF(Steuerung!$H$13=2,DATE(Steuerung!$D$11,Steuerung!$C$11+253,Steuerung!$B$11),DATE(Steuerung!$D$11,Steuerung!$C$11+85,Steuerung!$B$11))) -> 2091-07-12 | C90: =IF(Steuerung!$H$13=1,360,IF(Steuerung!$H$13=2,90,30)) -> 360 | D90: =(H89*Steuerung!$G$11)+F90 -> 0 | E90: 0 | F90: =IF(H89>0,(H89*Steuerung!$G$10*C90)/360,0) -> 0 | G90: =IF((H89+F90)>D90,Steuerung!$G$9*Steuerung!$G$11,H89) -> 0 | H90: 0
B91: =IF(Steuerung!$H$13=1,DATE(Steuerung!$D$11+86,Steuerung!$C$11,Steuerung!$B$11),IF(Steuerung!$H$13=2,DATE(Steuerung!$D$11,Steuerung!$C$11+256,Steuerung!$B$11),DATE(Steuerung!$D$11,Steuerung!$C$11+86,Steuerung!$B$11))) -> 2092-07-12 | C91: =IF(Steuerung!$H$13=1,360,IF(Steuerung!$H$13=2,90,30)) -> 360 | D91: =(H90*Steuerung!$G$11)+F91 -> 0 | E91: 0 | F91: =IF(H90>0,(H90*Steuerung!$G$10*C91)/360,0) -> 0 | G91: =IF((H90+F91)>D91,Steuerung!$G$9*Steuerung!$G$11,H90) -> 0 | H91: 0
B92: =IF(Steuerung!$H$13=1,DATE(Steuerung!$D$11+87,Steuerung!$C$11,Steuerung!$B$11),IF(Steuerung!$H$13=2,DATE(Steuerung!$D$11,Steuerung!$C$11+259,Steuerung!$B$11),DATE(Steuerung!$D$11,Steuerung!$C$11+87,Steuerung!$B$11))) -> 2093-07-12 | C92: =IF(Steuerung!$H$13=1,360,IF(Steuerung!$H$13=2,90,30)) -> 360 | D92: =(H91*Steuerung!$G$11)+F92 -> 0 | E92: 0 | F92: =IF(H91>0,(H91*Steuerung!$G$10*C92)/360,0) -> 0 | G92: =IF((H91+F92)>D92,Steuerung!$G$9*Steuerung!$G$11,H91) -> 0 | H92: 0
B93: =IF(Steuerung!$H$13=1,DATE(Steuerung!$D$11+88,Steuerung!$C$11,Steuerung!$B$11),IF(Steuerung!$H$13=2,DATE(Steuerung!$D$11,Steuerung!$C$11+262,Steuerung!$B$11),DATE(Steuerung!$D$11,Steuerung!$C$11+88,Steuerung!$B$11))) -> 2094-07-12 | C93: =IF(Steuerung!$H$13=1,360,IF(Steuerung!$H$13=2,90,30)) -> 360 | D93: =(H92*Steuerung!$G$11)+F93 -> 0 | E93: 0 | F93: =IF(H92>0,(H92*Steuerung!$G$10*C93)/360,0) -> 0 | G93: =IF((H92+F93)>D93,Steuerung!$G$9*Steuerung!$G$11,H92) -> 0 | H93: 0
B94: =IF(Steuerung!$H$13=1,DATE(Steuerung!$D$11+89,Steuerung!$C$11,Steuerung!$B$11),IF(Steuerung!$H$13=2,DATE(Steuerung!$D$11,Steuerung!$C$11+265,Steuerung!$B$11),DATE(Steuerung!$D$11,Steuerung!$C$11+89,Steuerung!$B$11))) -> 2095-07-12 | C94: =IF(Steuerung!$H$13=1,360,IF(Steuerung!$H$13=2,90,30)) -> 360 | D94: =(H93*Steuerung!$G$11)+F94 -> 0 | E94: 0 | F94: =IF(H93>0,(H93*Steuerung!$G$10*C94)/360,0) -> 0 | G94: =IF((H93+F94)>D94,Steuerung!$G$9*Steuerung!$G$11,H93) -> 0 | H94: 0
B95: =IF(Steuerung!$H$13=1,DATE(Steuerung!$D$11+90,Steuerung!$C$11,Steuerung!$B$11),IF(Steuerung!$H$13=2,DATE(Steuerung!$D$11,Steuerung!$C$11+268,Steuerung!$B$11),DATE(Steuerung!$D$11,Steuerung!$C$11+90,Steuerung!$B$11))) -> 2096-07-12 | C95: =IF(Steuerung!$H$13=1,360,IF(Steuerung!$H$13=2,90,30)) -> 360 | D95: =(H94*Steuerung!$G$11)+F95 -> 0 | E95: 0 | F95: =IF(H94>0,(H94*Steuerung!$G$10*C95)/360,0) -> 0 | G95: =IF((H94+F95)>D95,Steuerung!$G$9*Steuerung!$G$11,H94) -> 0 | H95: 0
B96: =IF(Steuerung!$H$13=1,DATE(Steuerung!$D$11+91,Steuerung!$C$11,Steuerung!$B$11),IF(Steuerung!$H$13=2,DATE(Steuerung!$D$11,Steuerung!$C$11+271,Steuerung!$B$11),DATE(Steuerung!$D$11,Steuerung!$C$11+91,Steuerung!$B$11))) -> 2097-07-12 | C96: =IF(Steuerung!$H$13=1,360,IF(Steuerung!$H$13=2,90,30)) -> 360 | D96: =(H95*Steuerung!$G$11)+F96 -> 0 | E96: 0 | F96: =IF(H95>0,(H95*Steuerung!$G$10*C96)/360,0) -> 0 | G96: =IF((H95+F96)>D96,Steuerung!$G$9*Steuerung!$G$11,H95) -> 0 | H96: 0
B97: =IF(Steuerung!$H$13=1,DATE(Steuerung!$D$11+92,Steuerung!$C$11,Steuerung!$B$11),IF(Steuerung!$H$13=2,DATE(Steuerung!$D$11,Steuerung!$C$11+274,Steuerung!$B$11),DATE(Steuerung!$D$11,Steuerung!$C$11+92,Steuerung!$B$11))) -> 2098-07-12 | C97: =IF(Steuerung!$H$13=1,360,IF(Steuerung!$H$13=2,90,30)) -> 360 | D97: =(H96*Steuerung!$G$11)+F97 -> 0 | E97: 0 | F97: =IF(H96>0,(H96*Steuerung!$G$10*C97)/360,0) -> 0 | G97: =IF((H96+F97)>D97,Steuerung!$G$9*Steuerung!$G$11,H96) -> 0 | H97: 0
B98: =IF(Steuerung!$H$13=1,DATE(Steuerung!$D$11+93,Steuerung!$C$11,Steuerung!$B$11),IF(Steuerung!$H$13=2,DATE(Steuerung!$D$11,Steuerung!$C$11+277,Steuerung!$B$11),DATE(Steuerung!$D$11,Steuerung!$C$11+93,Steuerung!$B$11))) -> 2099-07-12 | C98: =IF(Steuerung!$H$13=1,360,IF(Steuerung!$H$13=2,90,30)) -> 360 | D98: =(H97*Steuerung!$G$11)+F98 -> 0 | E98: 0 | F98: =IF(H97>0,(H97*Steuerung!$G$10*C98)/360,0) -> 0 | G98: =IF((H97+F98)>D98,Steuerung!$G$9*Steuerung!$G$11,H97) -> 0 | H98: 0
B99: =IF(Steuerung!$H$13=1,DATE(Steuerung!$D$11+94,Steuerung!$C$11,Steuerung!$B$11),IF(Steuerung!$H$13=2,DATE(Steuerung!$D$11,Steuerung!$C$11+280,Steuerung!$B$11),DATE(Steuerung!$D$11,Steuerung!$C$11+94,Steuerung!$B$11))) -> 2100-07-12 | C99: =IF(Steuerung!$H$13=1,360,IF(Steuerung!$H$13=2,90,30)) -> 360 | D99: =(H98*Steuerung!$G$11)+F99 -> 0 | E99: 0 | F99: =IF(H98>0,(H98*Steuerung!$G$10*C99)/360,0) -> 0 | G99: =IF((H98+F99)>D99,Steuerung!$G$9*Steuerung!$G$11,H98) -> 0 | H99: 0
B100: =IF(Steuerung!$H$13=1,DATE(Steuerung!$D$11+95,Steuerung!$C$11,Steuerung!$B$11),IF(Steuerung!$H$13=2,DATE(Steuerung!$D$11,Steuerung!$C$11+283,Steuerung!$B$11),DATE(Steuerung!$D$11,Steuerung!$C$11+95,Steuerung!$B$11))) -> 2101-07-12 | C100: =IF(Steuerung!$H$13=1,360,IF(Steuerung!$H$13=2,90,30)) -> 360 | D100: =(H99*Steuerung!$G$11)+F100 -> 0 | E100: 0 | F100: =IF(H99>0,(H99*Steuerung!$G$10*C100)/360,0) -> 0 | G100: =IF((H99+F100)>D100,Steuerung!$G$9*Steuerung!$G$11,H99) -> 0 | H100: 0
B101: =IF(Steuerung!$H$13=1,DATE(Steuerung!$D$11+96,Steuerung!$C$11,Steuerung!$B$11),IF(Steuerung!$H$13=2,DATE(Steuerung!$D$11,Steuerung!$C$11+286,Steuerung!$B$11),DATE(Steuerung!$D$11,Steuerung!$C$11+96,Steuerung!$B$11))) -> 2102-07-12 | C101: =IF(Steuerung!$H$13=1,360,IF(Steuerung!$H$13=2,90,30)) -> 360 | D101: =(H100*Steuerung!$G$11)+F101 -> 0 | E101: 0 | F101: =IF(H100>0,(H100*Steuerung!$G$10*C101)/360,0) -> 0 | G101: =IF((H100+F101)>D101,Steuerung!$G$9*Steuerung!$G$11,H100) -> 0 | H101: 0
B102: =IF(Steuerung!$H$13=1,DATE(Steuerung!$D$11+97,Steuerung!$C$11,Steuerung!$B$11),IF(Steuerung!$H$13=2,DATE(Steuerung!$D$11,Steuerung!$C$11+289,Steuerung!$B$11),DATE(Steuerung!$D$11,Steuerung!$C$11+97,Steuerung!$B$11))) -> 2103-07-12 | C102: =IF(Steuerung!$H$13=1,360,IF(Steuerung!$H$13=2,90,30)) -> 360 | D102: =(H101*Steuerung!$G$11)+F102 -> 0 | E102: 0 | F102: =IF(H101>0,(H101*Steuerung!$G$10*C102)/360,0) -> 0 | G102: =IF((H101+F102)>D102,Steuerung!$G$9*Steuerung!$G$11,H101) -> 0 | H102: 0
B103: =IF(Steuerung!$H$13=1,DATE(Steuerung!$D$11+98,Steuerung!$C$11,Steuerung!$B$11),IF(Steuerung!$H$13=2,DATE(Steuerung!$D$11,Steuerung!$C$11+292,Steuerung!$B$11),DATE(Steuerung!$D$11,Steuerung!$C$11+98,Steuerung!$B$11))) -> 2104-07-12 | C103: =IF(Steuerung!$H$13=1,360,IF(Steuerung!$H$13=2,90,30)) -> 360 | D103: =(H102*Steuerung!$G$11)+F103 -> 0 | E103: 0 | F103: =IF(H102>0,(H102*Steuerung!$G$10*C103)/360,0) -> 0 | G103: =IF((H102+F103)>D103,Steuerung!$G$9*Steuerung!$G$11,H102) -> 0 | H103: 0
B104: =IF(Steuerung!$H$13=1,DATE(Steuerung!$D$11+99,Steuerung!$C$11,Steuerung!$B$11),IF(Steuerung!$H$13=2,DATE(Steuerung!$D$11,Steuerung!$C$11+295,Steuerung!$B$11),DATE(Steuerung!$D$11,Steuerung!$C$11+99,Steuerung!$B$11))) -> 2105-07-12 | C104: =IF(Steuerung!$H$13=1,360,IF(Steuerung!$H$13=2,90,30)) -> 360 | D104: =(H103*Steuerung!$G$11)+F104 -> 0 | E104: 0 | F104: =IF(H103>0,(H103*Steuerung!$G$10*C104)/360,0) -> 0 | G104: =IF((H103+F104)>D104,Steuerung!$G$9*Steuerung!$G$11,H103) -> 0 | H104: 0
B105: =IF(Steuerung!$H$13=1,DATE(Steuerung!$D$11+100,Steuerung!$C$11,Steuerung!$B$11),IF(Steuerung!$H$13=2,DATE(Steuerung!$D$11,Steuerung!$C$11+298,Steuerung!$B$11),DATE(Steuerung!$D$11,Steuerung!$C$11+100,Steuerung!$B$11))) -> 2106-07-12 | C105: =IF(Steuerung!$H$13=1,360,IF(Steuerung!$H$13=2,90,30)) -> 360 | D105: =(H104*Steuerung!$G$11)+F105 -> 0 | E105: 0 | F105: =IF(H104>0,(H104*Steuerung!$G$10*C105)/360,0) -> 0 | G105: =IF((H104+F105)>D105,Steuerung!$G$9*Steuerung!$G$11,H104) -> 0 | H105: 0
B106: Summen | E106: =SUM(E5:E105) -> 453045.6863 | F106: =SUM(F5:F105) -> 26649.74625 | G106: =SUM(G5:G105) -> 426395.94
